Department family,Entity,Date,Expense Type,Expense area,Supplier,Transaction number,AP Amount (�)
Department of Health,NHS Sheffield CCG,31/07/2019,C&M-PMS Contract Value,PRC DELEGATED CO-COMMISSIONING,ABBEY LANE SURGERY,28017338,"23,782.31"
Department of Health,NHS Sheffield CCG,31/07/2019,C&M-PMS Out of Hours Opt Outs,PRC DELEGATED CO-COMMISSIONING,ABBEY LANE SURGERY,28017338,6.52
Department of Health,NHS Sheffield CCG,31/07/2019,C&M-PMS PCN DES Participation,PRC DELEGATED CO-COMMISSIONING,ABBEY LANE SURGERY,28017338,"1,356.68"
Department of Health,NHS Sheffield CCG,31/07/2019,C&M-PMS Prem Notional Rent,PRC DELEGATED CO-COMMISSIONING,ABBEY LANE SURGERY,28017338,"2,122.92"
Department of Health,NHS Sheffield CCG,31/07/2019,C&M-PMS QOF Aspiration,PRC DELEGATED CO-COMMISSIONING,ABBEY LANE SURGERY,28017338,"2,636.98"
Department of Health,NHS Sheffield CCG,31/07/2019,Cont Care-Physical Disab (65+),CHC ADULT FULLY FUNDED,ABBEYCARE NURSING,28051155,"51,285.78"
Department of Health,NHS Sheffield CCG,31/07/2019,Cont Care-Physical Disab (<65),CHC ADULT FULLY FUNDED,ALPINE HEALTH CARE,28087876,"25,025.43"
Department of Health,NHS Sheffield CCG,31/07/2019,C&M-PMS Contract Value,PRC DELEGATED CO-COMMISSIONING,AVENUE MEDICAL CENTRE SHEFFIELD,28017336,"55,174.87"
Department of Health,NHS Sheffield CCG,31/07/2019,C&M-PMS PCN DES Participation,PRC DELEGATED CO-COMMISSIONING,AVENUE MEDICAL CENTRE SHEFFIELD,28017336,"3,174.95"
Department of Health,NHS Sheffield CCG,31/07/2019,C&M-PMS PCO Other,PRC DELEGATED CO-COMMISSIONING,AVENUE MEDICAL CENTRE SHEFFIELD,28017336,460.3
Department of Health,NHS Sheffield CCG,31/07/2019,C&M-PMS Prem Notional Rent,PRC DELEGATED CO-COMMISSIONING,AVENUE MEDICAL CENTRE SHEFFIELD,28017336,"5,546.67"
Department of Health,NHS Sheffield CCG,31/07/2019,C&M-PMS Prem Rates,PRC DELEGATED CO-COMMISSIONING,AVENUE MEDICAL CENTRE SHEFFIELD,28017336,"1,264.00"
Department of Health,NHS Sheffield CCG,31/07/2019,C&M-PMS Prem Water Rates,PRC DELEGATED CO-COMMISSIONING,AVENUE MEDICAL CENTRE SHEFFIELD,28017336,118.89
Department of Health,NHS Sheffield CCG,31/07/2019,C&M-PMS QOF Aspiration,PRC DELEGATED CO-COMMISSIONING,AVENUE MEDICAL CENTRE SHEFFIELD,28017336,"5,847.72"
Department of Health,NHS Sheffield CCG,31/07/2019,C&M-PMS Contract Value,PRC DELEGATED CO-COMMISSIONING,BARNSLEY ROAD SURGERY,28017340,"21,707.99"
Department of Health,NHS Sheffield CCG,31/07/2019,C&M-PMS PCN DES Participation,PRC DELEGATED CO-COMMISSIONING,BARNSLEY ROAD SURGERY,28017340,"1,231.90"
Department of Health,NHS Sheffield CCG,31/07/2019,C&M-PMS Prem Notional Rent,PRC DELEGATED CO-COMMISSIONING,BARNSLEY ROAD SURGERY,28017340,"2,652.17"
Department of Health,NHS Sheffield CCG,31/07/2019,C&M-PMS QOF Aspiration,PRC DELEGATED CO-COMMISSIONING,BARNSLEY ROAD SURGERY,28017340,"2,377.21"
Department of Health,NHS Sheffield CCG,31/07/2019,C&M-GMS Global Sum,PRC DELEGATED CO-COMMISSIONING,BASLOW ROAD & SHOREHAM STREET SURGERIES,28275354,"97,980.73"
Department of Health,NHS Sheffield CCG,31/07/2019,C&M-GMS MPIG Correction Factor,PRC DELEGATED CO-COMMISSIONING,BASLOW ROAD & SHOREHAM STREET SURGERIES,28275354,146.21
Department of Health,NHS Sheffield CCG,31/07/2019,C&M-GMS PCN DES Participation,PRC DELEGATED CO-COMMISSIONING,BASLOW ROAD & SHOREHAM STREET SURGERIES,28275354,"6,037.61"
Department of Health,NHS Sheffield CCG,31/07/2019,C&M-GMS PCO Locum Sickness,PRC DELEGATED CO-COMMISSIONING,BASLOW ROAD & SHOREHAM STREET SURGERIES,28275354,"5,190.24"
Department of Health,NHS Sheffield CCG,31/07/2019,C&M-GMS PCO Other,PRC DELEGATED CO-COMMISSIONING,BASLOW ROAD & SHOREHAM STREET SURGERIES,28275354,"7,730.00"
Department of Health,NHS Sheffield CCG,31/07/2019,C&M-GMS Prem Notional Rent,PRC DELEGATED CO-COMMISSIONING,BASLOW ROAD & SHOREHAM STREET SURGERIES,28275354,"8,222.71"
Department of Health,NHS Sheffield CCG,31/07/2019,C&M-GMS Prem Rates,PRC DELEGATED CO-COMMISSIONING,BASLOW ROAD & SHOREHAM STREET SURGERIES,28275354,"2,421.00"
Department of Health,NHS Sheffield CCG,31/07/2019,C&M-GMS QOF Aspiration,PRC DELEGATED CO-COMMISSIONING,BASLOW ROAD & SHOREHAM STREET SURGERIES,28275354,"10,278.96"
Department of Health,NHS Sheffield CCG,31/07/2019,Cont Care-Physical Disab (65+),CHC ADULT FULLY FUNDED,BC SHEFFIELD LTD,28051150,"39,504.07"
Department of Health,NHS Sheffield CCG,31/07/2019,C&M-PMS Contract Value,PRC DELEGATED CO-COMMISSIONING,BIRLEY HEALTH CENTRE,28017342,"63,625.04"
Department of Health,NHS Sheffield CCG,31/07/2019,C&M-PMS PCN DES Participation,PRC DELEGATED CO-COMMISSIONING,BIRLEY HEALTH CENTRE,28017342,"3,627.95"
Department of Health,NHS Sheffield CCG,31/07/2019,C&M-PMS PCO Other,PRC DELEGATED CO-COMMISSIONING,BIRLEY HEALTH CENTRE,28017342,535.9
Department of Health,NHS Sheffield CCG,31/07/2019,C&M-PMS Prem Notional Rent,PRC DELEGATED CO-COMMISSIONING,BIRLEY HEALTH CENTRE,28017342,"7,600.58"
Department of Health,NHS Sheffield CCG,31/07/2019,C&M-PMS Prem Rates,PRC DELEGATED CO-COMMISSIONING,BIRLEY HEALTH CENTRE,28017342,"1,407.00"
Department of Health,NHS Sheffield CCG,31/07/2019,C&M-PMS Prem Water Rates,PRC DELEGATED CO-COMMISSIONING,BIRLEY HEALTH CENTRE,28017342,452.16
Department of Health,NHS Sheffield CCG,31/07/2019,C&M-PMS QOF Aspiration,PRC DELEGATED CO-COMMISSIONING,BIRLEY HEALTH CENTRE,28017342,"7,981.39"
Department of Health,NHS Sheffield CCG,31/07/2019,Clinical&Medical-Independent Sector,ACUTE COMMISSIONING,BMI HEALTHCARE LTD,28051029,"59,155.50"
Department of Health,NHS Sheffield CCG,31/07/2019,Clinical&Medical-Independent Sector,ACUTE COMMISSIONING,BMI HEALTHCARE LTD,28233414,"-30,420.01"
Department of Health,NHS Sheffield CCG,31/07/2019,Cont Care-Funded Nursing Care Allow,FUNDED NURSING CARE,BONDCARE,28087621,"38,291.44"
Department of Health,NHS Sheffield CCG,31/07/2019,C&M-GMS Cost of Drugs -Prescribing,LOCAL ENHANCED SERVICES,BROOMHILL SURGERY,28251868,"2,879.45"
Department of Health,NHS Sheffield CCG,31/07/2019,C&M-GMS Global Sum,PRC DELEGATED CO-COMMISSIONING,BROOMHILL SURGERY,28251868,"64,875.57"
Department of Health,NHS Sheffield CCG,31/07/2019,C&M-GMS MPIG Correction Factor,PRC DELEGATED CO-COMMISSIONING,BROOMHILL SURGERY,28251868,251
Department of Health,NHS Sheffield CCG,31/07/2019,C&M-GMS PCN DES Participation,PRC DELEGATED CO-COMMISSIONING,BROOMHILL SURGERY,28251868,"3,955.51"
Department of Health,NHS Sheffield CCG,31/07/2019,C&M-GMS Prem Cost Rent,PRC DELEGATED CO-COMMISSIONING,BROOMHILL SURGERY,28251868,"2,413.75"
Department of Health,NHS Sheffield CCG,31/07/2019,C&M-GMS Prem Notional Rent,PRC DELEGATED CO-COMMISSIONING,BROOMHILL SURGERY,28251868,"2,612.50"
Department of Health,NHS Sheffield CCG,31/07/2019,C&M-GMS Prem Rates,PRC DELEGATED CO-COMMISSIONING,BROOMHILL SURGERY,28251868,"1,891.00"
Department of Health,NHS Sheffield CCG,31/07/2019,C&M-GMS Prof Fees Prescribing,PRC DELEGATED CO-COMMISSIONING,BROOMHILL SURGERY,28251868,165.95
Department of Health,NHS Sheffield CCG,31/07/2019,C&M-GMS QOF Aspiration,PRC DELEGATED CO-COMMISSIONING,BROOMHILL SURGERY,28251868,"6,211.39"
Department of Health,NHS Sheffield CCG,31/07/2019,C&M-GMS IT Comm Servs -GP Practices,PRIMARY CARE IT,BT GLOBAL SERVICES,27913579,"24,667.80"
Department of Health,NHS Sheffield CCG,31/07/2019,Computer Software/License,CORPORATE COSTS & SERVICES,BT GLOBAL SERVICES,27913579,"2,961.84"
Department of Health,NHS Sheffield CCG,31/07/2019,C&M-GMS IT Comm Servs -GP Practices,PRIMARY CARE IT,BT GLOBAL SERVICES,28226020,"24,619.20"
Department of Health,NHS Sheffield CCG,31/07/2019,Computer Software/License,CORPORATE COSTS & SERVICES,BT GLOBAL SERVICES,28226020,"6,981.48"
Department of Health,NHS Sheffield CCG,31/07/2019,C&M-GMS Cost of Drugs -Prescribing,LOCAL ENHANCED SERVICES,BUCHANAN ROAD SURGERY,28251864,13.97
Department of Health,NHS Sheffield CCG,31/07/2019,C&M-GMS Global Sum,PRC DELEGATED CO-COMMISSIONING,BUCHANAN ROAD SURGERY,28251864,"36,082.57"
Department of Health,NHS Sheffield CCG,31/07/2019,C&M-GMS MPIG Correction Factor,PRC DELEGATED CO-COMMISSIONING,BUCHANAN ROAD SURGERY,28251864,655.25
Department of Health,NHS Sheffield CCG,31/07/2019,C&M-GMS PCN DES Participation,PRC DELEGATED CO-COMMISSIONING,BUCHANAN ROAD SURGERY,28251864,"2,209.24"
Department of Health,NHS Sheffield CCG,31/07/2019,C&M-GMS Prem Notional Rent,PRC DELEGATED CO-COMMISSIONING,BUCHANAN ROAD SURGERY,28251864,"2,595.83"
Department of Health,NHS Sheffield CCG,31/07/2019,C&M-GMS Prem Rates,PRC DELEGATED CO-COMMISSIONING,BUCHANAN ROAD SURGERY,28251864,884
Department of Health,NHS Sheffield CCG,31/07/2019,C&M-GMS Prof Fees Prescribing,PRC DELEGATED CO-COMMISSIONING,BUCHANAN ROAD SURGERY,28251864,4.81
Department of Health,NHS Sheffield CCG,31/07/2019,C&M-GMS QOF Aspiration,PRC DELEGATED CO-COMMISSIONING,BUCHANAN ROAD SURGERY,28251864,"4,303.24"
Department of Health,NHS Sheffield CCG,31/07/2019,C&M-PMS Contract Value,PRC DELEGATED CO-COMMISSIONING,BURNCROSS SURGERY,28017344,"121,145.86"
Department of Health,NHS Sheffield CCG,31/07/2019,C&M-PMS PCN DES Participation,PRC DELEGATED CO-COMMISSIONING,BURNCROSS SURGERY,28017344,"6,876.44"
Department of Health,NHS Sheffield CCG,31/07/2019,C&M-PMS Prem Notional Rent,PRC DELEGATED CO-COMMISSIONING,BURNCROSS SURGERY,28017344,"14,058.33"
Department of Health,NHS Sheffield CCG,31/07/2019,C&M-PMS QOF Aspiration,PRC DELEGATED CO-COMMISSIONING,BURNCROSS SURGERY,28017344,"15,732.40"
Department of Health,NHS Sheffield CCG,31/07/2019,C&M-PMS Contract Value,PRC DELEGATED CO-COMMISSIONING,BURNGREAVE SURGERY,28017346,"57,355.43"
Department of Health,NHS Sheffield CCG,31/07/2019,C&M-PMS PCN DES Participation,PRC DELEGATED CO-COMMISSIONING,BURNGREAVE SURGERY,28017346,"3,266.95"
Department of Health,NHS Sheffield CCG,31/07/2019,C&M-PMS Prem Notional Rent,PRC DELEGATED CO-COMMISSIONING,BURNGREAVE SURGERY,28017346,"6,622.92"
Department of Health,NHS Sheffield CCG,31/07/2019,C&M-PMS Prem Rates,PRC DELEGATED CO-COMMISSIONING,BURNGREAVE SURGERY,28017346,"2,140.00"
Department of Health,NHS Sheffield CCG,31/07/2019,C&M-PMS QOF Aspiration,PRC DELEGATED CO-COMMISSIONING,BURNGREAVE SURGERY,28017346,"5,288.96"
Department of Health,NHS Sheffield CCG,31/07/2019,C&M-GMS Cost of Drugs -Prescribing,LOCAL ENHANCED SERVICES,CARTERKNOWLE & DORE MEDICAL PRACTICE,28251873,"1,807.46"
Department of Health,NHS Sheffield CCG,31/07/2019,C&M-GMS Global Sum,PRC DELEGATED CO-COMMISSIONING,CARTERKNOWLE & DORE MEDICAL PRACTICE,28251873,"84,559.05"
Department of Health,NHS Sheffield CCG,31/07/2019,C&M-GMS MPIG Correction Factor,PRC DELEGATED CO-COMMISSIONING,CARTERKNOWLE & DORE MEDICAL PRACTICE,28251873,747.29
Department of Health,NHS Sheffield CCG,31/07/2019,C&M-GMS PCN DES Participation,PRC DELEGATED CO-COMMISSIONING,CARTERKNOWLE & DORE MEDICAL PRACTICE,28251873,"5,228.88"
Department of Health,NHS Sheffield CCG,31/07/2019,C&M-GMS Prem Notional Rent,PRC DELEGATED CO-COMMISSIONING,CARTERKNOWLE & DORE MEDICAL PRACTICE,28251873,"7,596.50"
Department of Health,NHS Sheffield CCG,31/07/2019,C&M-GMS Prof Fees Prescribing,PRC DELEGATED CO-COMMISSIONING,CARTERKNOWLE & DORE MEDICAL PRACTICE,28251873,245.31
Department of Health,NHS Sheffield CCG,31/07/2019,C&M-GMS QOF Aspiration,PRC DELEGATED CO-COMMISSIONING,CARTERKNOWLE & DORE MEDICAL PRACTICE,28251873,"10,055.02"
Department of Health,NHS Sheffield CCG,31/07/2019,C&M-GMS Cost of Drugs -Prescribing,LOCAL ENHANCED SERVICES,CHARNOCK HEALTH PRIMARY CARE CENTRE,28251870,966.71
Department of Health,NHS Sheffield CCG,31/07/2019,C&M-GMS DES Extended Hours Access,PRC DELEGATED CO-COMMISSIONING,CHARNOCK HEALTH PRIMARY CARE CENTRE,28251870,"2,628.18"
Department of Health,NHS Sheffield CCG,31/07/2019,C&M-GMS Global Sum,PRC DELEGATED CO-COMMISSIONING,CHARNOCK HEALTH PRIMARY CARE CENTRE,28251870,"43,215.93"
Department of Health,NHS Sheffield CCG,31/07/2019,C&M-GMS MPIG Correction Factor,PRC DELEGATED CO-COMMISSIONING,CHARNOCK HEALTH PRIMARY CARE CENTRE,28251870,206.62
Department of Health,NHS Sheffield CCG,31/07/2019,C&M-GMS PCN DES Participation,PRC DELEGATED CO-COMMISSIONING,CHARNOCK HEALTH PRIMARY CARE CENTRE,28251870,"2,607.98"
Department of Health,NHS Sheffield CCG,31/07/2019,C&M-GMS PCO Other,PRC DELEGATED CO-COMMISSIONING,CHARNOCK HEALTH PRIMARY CARE CENTRE,28251870,363.8
Department of Health,NHS Sheffield CCG,31/07/2019,C&M-GMS Prem Actual Rent,PRC DELEGATED CO-COMMISSIONING,CHARNOCK HEALTH PRIMARY CARE CENTRE,28251870,"20,100.00"
Department of Health,NHS Sheffield CCG,31/07/2019,C&M-GMS Prem Notional Rent,PRC DELEGATED CO-COMMISSIONING,CHARNOCK HEALTH PRIMARY CARE CENTRE,28251870,335
Department of Health,NHS Sheffield CCG,31/07/2019,C&M-GMS Prem Rates,PRC DELEGATED CO-COMMISSIONING,CHARNOCK HEALTH PRIMARY CARE CENTRE,28251870,"1,547.00"
Department of Health,NHS Sheffield CCG,31/07/2019,C&M-GMS Prem Water Rates,PRC DELEGATED CO-COMMISSIONING,CHARNOCK HEALTH PRIMARY CARE CENTRE,28251870,126.17
Department of Health,NHS Sheffield CCG,31/07/2019,C&M-GMS Prof Fees Prescribing,PRC DELEGATED CO-COMMISSIONING,CHARNOCK HEALTH PRIMARY CARE CENTRE,28251870,177.98
Department of Health,NHS Sheffield CCG,31/07/2019,C&M-GMS QOF Aspiration,PRC DELEGATED CO-COMMISSIONING,CHARNOCK HEALTH PRIMARY CARE CENTRE,28251870,"4,932.79"
Department of Health,NHS Sheffield CCG,31/07/2019,Clinical&Medical-Independent Sector,ACUTE COMMISSIONING,CLAREMONT HOSPITAL,28051204,"66,095.00"
Department of Health,NHS Sheffield CCG,31/07/2019,C&M-APMS Contract Value,PRC DELEGATED CO-COMMISSIONING,CLOVER CITY PRACTICE,28017417,"27,424.79"
Department of Health,NHS Sheffield CCG,31/07/2019,C&M-APMS PCN DES Participation,PRC DELEGATED CO-COMMISSIONING,CLOVER CITY PRACTICE,28017417,"1,589.70"
Department of Health,NHS Sheffield CCG,31/07/2019,C&M-PMS QOF Achievement,PRC DELEGATED CO-COMMISSIONING,CLOVER CITY PRACTICE,28017417,"8,064.25"
Department of Health,NHS Sheffield CCG,31/07/2019,C&M-PMS QOF Aspiration,PRC DELEGATED CO-COMMISSIONING,CLOVER CITY PRACTICE,28017417,"1,537.57"
Department of Health,NHS Sheffield CCG,31/07/2019,C&M-APMS Contract Value,PRC DELEGATED CO-COMMISSIONING,CLOVER GROUP PRACTICE,28017350,"125,656.74"
Department of Health,NHS Sheffield CCG,31/07/2019,C&M-APMS PCN DES Participation,PRC DELEGATED CO-COMMISSIONING,CLOVER GROUP PRACTICE,28017350,"7,264.66"
Department of Health,NHS Sheffield CCG,31/07/2019,C&M-APMS Prem Actual Rent,PRC DELEGATED CO-COMMISSIONING,CLOVER GROUP PRACTICE,28017350,"7,973.85"
Department of Health,NHS Sheffield CCG,31/07/2019,C&M-APMS Prem Healthcentre Rent,PRC DELEGATED CO-COMMISSIONING,CLOVER GROUP PRACTICE,28017350,"59,658.86"
Department of Health,NHS Sheffield CCG,31/07/2019,C&M-APMS Prem Notional Rent,PRC DELEGATED CO-COMMISSIONING,CLOVER GROUP PRACTICE,28017350,"2,804.17"
Department of Health,NHS Sheffield CCG,31/07/2019,C&M-PMS QOF Achievement,PRC DELEGATED CO-COMMISSIONING,CLOVER GROUP PRACTICE,28017350,"47,341.41"
Department of Health,NHS Sheffield CCG,31/07/2019,C&M-PMS QOF Aspiration,PRC DELEGATED CO-COMMISSIONING,CLOVER GROUP PRACTICE,28017350,"11,480.20"
Department of Health,NHS Sheffield CCG,31/07/2019,C&M-APMS LES Translation Fees,LOCAL ENHANCED SERVICES,CLOVER GROUP PRACTICE,28218510,"57,500.00"
Department of Health,NHS Sheffield CCG,31/07/2019,Voids and Subsidies,PRC DELEGATED CO-COMMISSIONING,COMMUNITY HEALTH PARTNERSHIPS LTD,28051017,"37,050.51"
Department of Health,NHS Sheffield CCG,31/07/2019,Voids and Subsidies,RECHARGES NHS PROPERTY SERVICES LTD,COMMUNITY HEALTH PARTNERSHIPS LTD,28051017,"117,396.67"
Department of Health,NHS Sheffield CCG,31/07/2019,Cont Care-Funded Nursing Care Allow,FUNDED NURSING CARE,COUNTRY COURT CARE LTD,28087560,"25,141.32"
Department of Health,NHS Sheffield CCG,31/07/2019,C&M-GMS Cost of Drugs -Prescribing,LOCAL ENHANCED SERVICES,CROOKES PRACTICE,28251878,453.18
Department of Health,NHS Sheffield CCG,31/07/2019,C&M-GMS Global Sum,PRC DELEGATED CO-COMMISSIONING,CROOKES PRACTICE,28251878,"50,840.80"
Department of Health,NHS Sheffield CCG,31/07/2019,C&M-GMS MPIG Correction Factor,PRC DELEGATED CO-COMMISSIONING,CROOKES PRACTICE,28251878,772.96
Department of Health,NHS Sheffield CCG,31/07/2019,C&M-GMS PCN DES Participation,PRC DELEGATED CO-COMMISSIONING,CROOKES PRACTICE,28251878,"3,121.65"
Department of Health,NHS Sheffield CCG,31/07/2019,C&M-GMS Prem Notional Rent,PRC DELEGATED CO-COMMISSIONING,CROOKES PRACTICE,28251878,"3,874.67"
Department of Health,NHS Sheffield CCG,31/07/2019,C&M-GMS Prem Rates,PRC DELEGATED CO-COMMISSIONING,CROOKES PRACTICE,28251878,"1,510.00"
Department of Health,NHS Sheffield CCG,31/07/2019,C&M-GMS Prof Fees Prescribing,PRC DELEGATED CO-COMMISSIONING,CROOKES PRACTICE,28251878,98.61
Department of Health,NHS Sheffield CCG,31/07/2019,C&M-GMS QOF Aspiration,PRC DELEGATED CO-COMMISSIONING,CROOKES PRACTICE,28251878,"4,885.77"
Department of Health,NHS Sheffield CCG,31/07/2019,Voids and Subsidies,RECHARGES NHS PROPERTY SERVICES LTD,DARNALL WELL BEING,28185762,"31,340.50"
Department of Health,NHS Sheffield CCG,31/07/2019,C&M-PMS Contract Value,PRC DELEGATED CO-COMMISSIONING,DEEPCAR MEDICAL CENTRE,28017352,"41,997.92"
Department of Health,NHS Sheffield CCG,31/07/2019,C&M-PMS PCN DES Participation,PRC DELEGATED CO-COMMISSIONING,DEEPCAR MEDICAL CENTRE,28017352,"2,369.56"
Department of Health,NHS Sheffield CCG,31/07/2019,C&M-PMS Prem Healthcentre Rent,PRC DELEGATED CO-COMMISSIONING,DEEPCAR MEDICAL CENTRE,28017352,"29,915.44"
Department of Health,NHS Sheffield CCG,31/07/2019,C&M-PMS QOF Aspiration,PRC DELEGATED CO-COMMISSIONING,DEEPCAR MEDICAL CENTRE,28017352,"4,298.67"
Department of Health,NHS Sheffield CCG,31/07/2019,C&M-GMS Cost of Drugs -Prescribing,LOCAL ENHANCED SERVICES,DEVONSHIRE GREEN MEDICAL CENTRE,28251881,587.88
Department of Health,NHS Sheffield CCG,31/07/2019,C&M-GMS DES Extended Hours Access,PRC DELEGATED CO-COMMISSIONING,DEVONSHIRE GREEN MEDICAL CENTRE,28251881,"6,816.36"
Department of Health,NHS Sheffield CCG,31/07/2019,C&M-GMS Global Sum,PRC DELEGATED CO-COMMISSIONING,DEVONSHIRE GREEN MEDICAL CENTRE,28251881,"45,951.96"
Department of Health,NHS Sheffield CCG,31/07/2019,C&M-GMS MPIG Correction Factor,PRC DELEGATED CO-COMMISSIONING,DEVONSHIRE GREEN MEDICAL CENTRE,28251881,"1,615.60"
Department of Health,NHS Sheffield CCG,31/07/2019,C&M-GMS PCN DES Clinical Director,PRC DELEGATED CO-COMMISSIONING,DEVONSHIRE GREEN MEDICAL CENTRE,28251881,"3,188.00"
Department of Health,NHS Sheffield CCG,31/07/2019,C&M-GMS PCN DES PCN support,LOCAL ENHANCED SERVICES,DEVONSHIRE GREEN MEDICAL CENTRE,28251881,"27,910.46"
Department of Health,NHS Sheffield CCG,31/07/2019,C&M-GMS PCN DES Participation,PRC DELEGATED CO-COMMISSIONING,DEVONSHIRE GREEN MEDICAL CENTRE,28251881,"2,795.25"
Department of Health,NHS Sheffield CCG,31/07/2019,C&M-GMS Prem Notional Rent,PRC DELEGATED CO-COMMISSIONING,DEVONSHIRE GREEN MEDICAL CENTRE,28251881,"5,987.50"
Department of Health,NHS Sheffield CCG,31/07/2019,C&M-GMS Prem Rates,PRC DELEGATED CO-COMMISSIONING,DEVONSHIRE GREEN MEDICAL CENTRE,28251881,975
Department of Health,NHS Sheffield CCG,31/07/2019,C&M-GMS Prof Fees Prescribing,PRC DELEGATED CO-COMMISSIONING,DEVONSHIRE GREEN MEDICAL CENTRE,28251881,96.22
Department of Health,NHS Sheffield CCG,31/07/2019,C&M-GMS QOF Aspiration,PRC DELEGATED CO-COMMISSIONING,DEVONSHIRE GREEN MEDICAL CENTRE,28251881,"4,805.68"
Department of Health,NHS Sheffield CCG,31/07/2019,Hcare Srv Rec Fdtn Trust-Contract Baseline,ACUTE COMMISSIONING,DONCASTER AND BASSETLAW HOSPITALS NHS FOUNDATION TRUST,28062884,"44,305.00"
Department of Health,NHS Sheffield CCG,31/07/2019,C&M-PMS Contract Value,PRC DELEGATED CO-COMMISSIONING,DOVERCOURT SURGERY,28017354,"72,956.10"
Department of Health,NHS Sheffield CCG,31/07/2019,C&M-PMS Out of Hours Opt Outs,PRC DELEGATED CO-COMMISSIONING,DOVERCOURT SURGERY,28017354,8.4
Department of Health,NHS Sheffield CCG,31/07/2019,C&M-PMS PCN DES Participation,PRC DELEGATED CO-COMMISSIONING,DOVERCOURT SURGERY,28017354,"4,177.07"
Department of Health,NHS Sheffield CCG,31/07/2019,C&M-PMS PCO Other,PRC DELEGATED CO-COMMISSIONING,DOVERCOURT SURGERY,28017354,536.1
Department of Health,NHS Sheffield CCG,31/07/2019,C&M-PMS Prem Actual Rent,PRC DELEGATED CO-COMMISSIONING,DOVERCOURT SURGERY,28017354,"12,400.00"
Department of Health,NHS Sheffield CCG,31/07/2019,C&M-PMS Prem Notional Rent,PRC DELEGATED CO-COMMISSIONING,DOVERCOURT SURGERY,28017354,"1,708.33"
Department of Health,NHS Sheffield CCG,31/07/2019,C&M-PMS Prem Water Rates,PRC DELEGATED CO-COMMISSIONING,DOVERCOURT SURGERY,28017354,65.31
Department of Health,NHS Sheffield CCG,31/07/2019,C&M-PMS QOF Aspiration,PRC DELEGATED CO-COMMISSIONING,DOVERCOURT SURGERY,28017354,"7,675.00"
Department of Health,NHS Sheffield CCG,31/07/2019,C&M-PMS Contract Value,PRC DELEGATED CO-COMMISSIONING,DR MEHROTRA & PARTNER,28017356,"26,407.40"
Department of Health,NHS Sheffield CCG,31/07/2019,C&M-PMS PCN DES Participation,PRC DELEGATED CO-COMMISSIONING,DR MEHROTRA & PARTNER,28017356,"1,504.26"
Department of Health,NHS Sheffield CCG,31/07/2019,C&M-PMS PCO Other,PRC DELEGATED CO-COMMISSIONING,DR MEHROTRA & PARTNER,28017356,237.8
Department of Health,NHS Sheffield CCG,31/07/2019,C&M-PMS Prem Actual Rent,PRC DELEGATED CO-COMMISSIONING,DR MEHROTRA & PARTNER,28017356,"2,650.00"
Department of Health,NHS Sheffield CCG,31/07/2019,C&M-PMS Prem Notional Rent,PRC DELEGATED CO-COMMISSIONING,DR MEHROTRA & PARTNER,28017356,"5,157.29"
Department of Health,NHS Sheffield CCG,31/07/2019,C&M-PMS Prem Rates,PRC DELEGATED CO-COMMISSIONING,DR MEHROTRA & PARTNER,28017356,"6,429.38"
Department of Health,NHS Sheffield CCG,31/07/2019,C&M-PMS QOF Aspiration,PRC DELEGATED CO-COMMISSIONING,DR MEHROTRA & PARTNER,28017356,"2,763.65"
Department of Health,NHS Sheffield CCG,31/07/2019,C&M-PMS Contract Value,PRC DELEGATED CO-COMMISSIONING,DR MILNER & PARTNERS,28017358,"75,416.48"
Department of Health,NHS Sheffield CCG,31/07/2019,C&M-PMS Out of Hours Opt Outs,PRC DELEGATED CO-COMMISSIONING,DR MILNER & PARTNERS,28017358,7.01
Department of Health,NHS Sheffield CCG,31/07/2019,C&M-PMS PCN DES Participation,PRC DELEGATED CO-COMMISSIONING,DR MILNER & PARTNERS,28017358,"4,307.79"
Department of Health,NHS Sheffield CCG,31/07/2019,C&M-PMS Prem Actual Rent,PRC DELEGATED CO-COMMISSIONING,DR MILNER & PARTNERS,28017358,"11,382.00"
Department of Health,NHS Sheffield CCG,31/07/2019,C&M-PMS Prem Notional Rent,PRC DELEGATED CO-COMMISSIONING,DR MILNER & PARTNERS,28017358,"4,462.42"
Department of Health,NHS Sheffield CCG,31/07/2019,C&M-PMS Prem Rates,PRC DELEGATED CO-COMMISSIONING,DR MILNER & PARTNERS,28017358,"2,593.00"
Department of Health,NHS Sheffield CCG,31/07/2019,C&M-PMS QOF Aspiration,PRC DELEGATED CO-COMMISSIONING,DR MILNER & PARTNERS,28017358,"6,513.90"
Department of Health,NHS Sheffield CCG,31/07/2019,C&M-GMS Cost of Drugs -Prescribing,LOCAL ENHANCED SERVICES,DUKE MEDICAL CENTRE,28251888,950.81
Department of Health,NHS Sheffield CCG,31/07/2019,C&M-GMS Global Sum,PRC DELEGATED CO-COMMISSIONING,DUKE MEDICAL CENTRE,28251888,"58,727.99"
Department of Health,NHS Sheffield CCG,31/07/2019,C&M-GMS MPIG Correction Factor,PRC DELEGATED CO-COMMISSIONING,DUKE MEDICAL CENTRE,28251888,306.25
Department of Health,NHS Sheffield CCG,31/07/2019,C&M-GMS PCN DES Participation,PRC DELEGATED CO-COMMISSIONING,DUKE MEDICAL CENTRE,28251888,"3,416.38"
Department of Health,NHS Sheffield CCG,31/07/2019,C&M-GMS PCO Other,PRC DELEGATED CO-COMMISSIONING,DUKE MEDICAL CENTRE,28251888,458.3
Department of Health,NHS Sheffield CCG,31/07/2019,C&M-GMS Prem Notional Rent,PRC DELEGATED CO-COMMISSIONING,DUKE MEDICAL CENTRE,28251888,"5,721.67"
Department of Health,NHS Sheffield CCG,31/07/2019,C&M-GMS Prem Rates,PRC DELEGATED CO-COMMISSIONING,DUKE MEDICAL CENTRE,28251888,"1,311.00"
Department of Health,NHS Sheffield CCG,31/07/2019,C&M-GMS Prof Fees Prescribing,PRC DELEGATED CO-COMMISSIONING,DUKE MEDICAL CENTRE,28251888,192.4
Department of Health,NHS Sheffield CCG,31/07/2019,C&M-GMS QOF Aspiration,PRC DELEGATED CO-COMMISSIONING,DUKE MEDICAL CENTRE,28251888,"5,166.69"
Department of Health,NHS Sheffield CCG,31/07/2019,C&M-PMS Contract Value,PRC DELEGATED CO-COMMISSIONING,DUNNINC ROAD SURGERY,28017360,"23,711.72"
Department of Health,NHS Sheffield CCG,31/07/2019,C&M-PMS PCN DES Participation,PRC DELEGATED CO-COMMISSIONING,DUNNINC ROAD SURGERY,28017360,"1,346.29"
Department of Health,NHS Sheffield CCG,31/07/2019,C&M-PMS Prem Notional Rent,PRC DELEGATED CO-COMMISSIONING,DUNNINC ROAD SURGERY,28017360,"2,195.83"
Department of Health,NHS Sheffield CCG,31/07/2019,C&M-PMS QOF Aspiration,PRC DELEGATED CO-COMMISSIONING,DUNNINC ROAD SURGERY,28017360,"2,054.91"
Department of Health,NHS Sheffield CCG,31/07/2019,C&M-PMS Contract Value,PRC DELEGATED CO-COMMISSIONING,DYKES HALL MEDICAL CENTRE,28017362,"73,046.07"
Department of Health,NHS Sheffield CCG,31/07/2019,C&M-PMS DES Extended Hours Access,PRC DELEGATED CO-COMMISSIONING,DYKES HALL MEDICAL CENTRE,28017362,"4,412.49"
Department of Health,NHS Sheffield CCG,31/07/2019,C&M-PMS Out of Hours Opt Outs,PRC DELEGATED CO-COMMISSIONING,DYKES HALL MEDICAL CENTRE,28017362,21.06
Department of Health,NHS Sheffield CCG,31/07/2019,C&M-PMS PCN DES Clinical Director,PRC DELEGATED CO-COMMISSIONING,DYKES HALL MEDICAL CENTRE,28017362,"2,063.71"
Department of Health,NHS Sheffield CCG,31/07/2019,C&M-PMS PCN DES PCN support,LOCAL ENHANCED SERVICES,DYKES HALL MEDICAL CENTRE,28017362,"18,067.46"
Department of Health,NHS Sheffield CCG,31/07/2019,C&M-PMS PCN DES Participation,PRC DELEGATED CO-COMMISSIONING,DYKES HALL MEDICAL CENTRE,28017362,"4,160.59"
Department of Health,NHS Sheffield CCG,31/07/2019,C&M-PMS Prem Notional Rent,PRC DELEGATED CO-COMMISSIONING,DYKES HALL MEDICAL CENTRE,28017362,"5,377.08"
Department of Health,NHS Sheffield CCG,31/07/2019,C&M-PMS QOF Aspiration,PRC DELEGATED CO-COMMISSIONING,DYKES HALL MEDICAL CENTRE,28017362,"8,323.49"
Department of Health,NHS Sheffield CCG,31/07/2019,C&M-PMS Contract Value,PRC DELEGATED CO-COMMISSIONING,EAST BANK MEDICAL CENTRE,28017364,"48,556.57"
Department of Health,NHS Sheffield CCG,31/07/2019,C&M-PMS PCN DES Participation,PRC DELEGATED CO-COMMISSIONING,EAST BANK MEDICAL CENTRE,28017364,"2,742.25"
Department of Health,NHS Sheffield CCG,31/07/2019,C&M-PMS Prem Notional Rent,PRC DELEGATED CO-COMMISSIONING,EAST BANK MEDICAL CENTRE,28017364,"10,583.33"
Department of Health,NHS Sheffield CCG,31/07/2019,C&M-PMS Prem Rates,PRC DELEGATED CO-COMMISSIONING,EAST BANK MEDICAL CENTRE,28017364,"2,898.00"
Department of Health,NHS Sheffield CCG,31/07/2019,C&M-PMS QOF Aspiration,PRC DELEGATED CO-COMMISSIONING,EAST BANK MEDICAL CENTRE,28017364,"5,026.31"
Department of Health,NHS Sheffield CCG,31/07/2019,C&M-GMS Cost of Drugs -Prescribing,LOCAL ENHANCED SERVICES,ECCLESFIELD GROUP PRACTICE,28251884,"3,160.18"
Department of Health,NHS Sheffield CCG,31/07/2019,C&M-GMS DES Extended Hours Access,PRC DELEGATED CO-COMMISSIONING,ECCLESFIELD GROUP PRACTICE,28251884,"5,190.33"
Department of Health,NHS Sheffield CCG,31/07/2019,C&M-GMS Global Sum,PRC DELEGATED CO-COMMISSIONING,ECCLESFIELD GROUP PRACTICE,28251884,"68,946.99"
Department of Health,NHS Sheffield CCG,31/07/2019,C&M-GMS PCN DES Clinical Director,PRC DELEGATED CO-COMMISSIONING,ECCLESFIELD GROUP PRACTICE,28251884,"2,427.51"
Department of Health,NHS Sheffield CCG,31/07/2019,C&M-GMS PCN DES PCN support,LOCAL ENHANCED SERVICES,ECCLESFIELD GROUP PRACTICE,28251884,"21,252.46"
Department of Health,NHS Sheffield CCG,31/07/2019,C&M-GMS PCN DES Participation,PRC DELEGATED CO-COMMISSIONING,ECCLESFIELD GROUP PRACTICE,28251884,"4,202.92"
Department of Health,NHS Sheffield CCG,31/07/2019,C&M-GMS PCO Other,PRC DELEGATED CO-COMMISSIONING,ECCLESFIELD GROUP PRACTICE,28251884,525.3
Department of Health,NHS Sheffield CCG,31/07/2019,C&M-GMS Prem Notional Rent,PRC DELEGATED CO-COMMISSIONING,ECCLESFIELD GROUP PRACTICE,28251884,"6,805.42"
Department of Health,NHS Sheffield CCG,31/07/2019,C&M-GMS Prem Rates,PRC DELEGATED CO-COMMISSIONING,ECCLESFIELD GROUP PRACTICE,28251884,"1,527.00"
Department of Health,NHS Sheffield CCG,31/07/2019,C&M-GMS Prof Fees Prescribing,PRC DELEGATED CO-COMMISSIONING,ECCLESFIELD GROUP PRACTICE,28251884,315.08
Department of Health,NHS Sheffield CCG,31/07/2019,C&M-GMS QOF Aspiration,PRC DELEGATED CO-COMMISSIONING,ECCLESFIELD GROUP PRACTICE,28251884,"9,179.49"
Department of Health,NHS Sheffield CCG,31/07/2019,C&M-GMS Cost of Drugs -Prescribing,LOCAL ENHANCED SERVICES,ELM LANE SURGERY,28251886,"1,057.56"
Department of Health,NHS Sheffield CCG,31/07/2019,C&M-GMS DES Learn Dsblty Hlth Chk,PRC DELEGATED CO-COMMISSIONING,ELM LANE SURGERY,28251886,"1,400.00"
Department of Health,NHS Sheffield CCG,31/07/2019,C&M-GMS Global Sum,PRC DELEGATED CO-COMMISSIONING,ELM LANE SURGERY,28251886,"40,467.95"
Department of Health,NHS Sheffield CCG,31/07/2019,C&M-GMS MPIG Correction Factor,PRC DELEGATED CO-COMMISSIONING,ELM LANE SURGERY,28251886,419.26
Department of Health,NHS Sheffield CCG,31/07/2019,C&M-GMS PCN DES Participation,PRC DELEGATED CO-COMMISSIONING,ELM LANE SURGERY,28251886,"2,464.31"
Department of Health,NHS Sheffield CCG,31/07/2019,C&M-GMS Prem Notional Rent,PRC DELEGATED CO-COMMISSIONING,ELM LANE SURGERY,28251886,"5,305.50"
Department of Health,NHS Sheffield CCG,31/07/2019,C&M-GMS Prof Fees Prescribing,PRC DELEGATED CO-COMMISSIONING,ELM LANE SURGERY,28251886,165.95
Department of Health,NHS Sheffield CCG,31/07/2019,C&M-GMS QOF Aspiration,PRC DELEGATED CO-COMMISSIONING,ELM LANE SURGERY,28251886,"4,720.25"
Department of Health,NHS Sheffield CCG,31/07/2019,Clinical&Medical-Independent Sector,MENTAL HEALTH CONTRACTS,ELYSIUM HEALTHCARE LTD,28233412,"-28,301.52"
Department of Health,NHS Sheffield CCG,31/07/2019,Cont Care-Physical Disab (<65),CHC ADULT FULLY FUNDED,FAIRWINDS HEALTH CARE LTD,28087821,"39,203.66"
Department of Health,NHS Sheffield CCG,31/07/2019,C&M-PMS Contract Value,PRC DELEGATED CO-COMMISSIONING,FALKLAND HOUSE,28017368,"26,014.60"
Department of Health,NHS Sheffield CCG,31/07/2019,C&M-PMS PCN DES Participation,PRC DELEGATED CO-COMMISSIONING,FALKLAND HOUSE,28017368,"1,486.61"
Department of Health,NHS Sheffield CCG,31/07/2019,C&M-PMS PCO Other,PRC DELEGATED CO-COMMISSIONING,FALKLAND HOUSE,28017368,276.4
Department of Health,NHS Sheffield CCG,31/07/2019,C&M-PMS Prem Notional Rent,PRC DELEGATED CO-COMMISSIONING,FALKLAND HOUSE,28017368,"1,866.67"
Department of Health,NHS Sheffield CCG,31/07/2019,C&M-PMS Prem Rates,PRC DELEGATED CO-COMMISSIONING,FALKLAND HOUSE,28017368,773
Department of Health,NHS Sheffield CCG,31/07/2019,C&M-PMS QOF Aspiration,PRC DELEGATED CO-COMMISSIONING,FALKLAND HOUSE,28017368,"2,925.24"
Department of Health,NHS Sheffield CCG,31/07/2019,C&M-GMS Cost of Drugs -Prescribing,LOCAL ENHANCED SERVICES,FAR LANE MEDICAL CENTRE,28251895,526.24
Department of Health,NHS Sheffield CCG,31/07/2019,C&M-GMS Global Sum,PRC DELEGATED CO-COMMISSIONING,FAR LANE MEDICAL CENTRE,28251895,"55,556.46"
Department of Health,NHS Sheffield CCG,31/07/2019,C&M-GMS PCN DES Participation,PRC DELEGATED CO-COMMISSIONING,FAR LANE MEDICAL CENTRE,28251895,"3,415.45"
Department of Health,NHS Sheffield CCG,31/07/2019,C&M-GMS PCO Other,PRC DELEGATED CO-COMMISSIONING,FAR LANE MEDICAL CENTRE,28251895,"1,849.20"
Department of Health,NHS Sheffield CCG,31/07/2019,C&M-GMS Prem Notional Rent,PRC DELEGATED CO-COMMISSIONING,FAR LANE MEDICAL CENTRE,28251895,"3,462.50"
Department of Health,NHS Sheffield CCG,31/07/2019,C&M-GMS Prem Rates,PRC DELEGATED CO-COMMISSIONING,FAR LANE MEDICAL CENTRE,28251895,"1,184.00"
Department of Health,NHS Sheffield CCG,31/07/2019,C&M-GMS Prem Water Rates,PRC DELEGATED CO-COMMISSIONING,FAR LANE MEDICAL CENTRE,28251895,96.68
Department of Health,NHS Sheffield CCG,31/07/2019,C&M-GMS Prof Fees Prescribing,PRC DELEGATED CO-COMMISSIONING,FAR LANE MEDICAL CENTRE,28251895,72.16
Department of Health,NHS Sheffield CCG,31/07/2019,C&M-GMS QOF Aspiration,PRC DELEGATED CO-COMMISSIONING,FAR LANE MEDICAL CENTRE,28251895,"5,719.80"
Department of Health,NHS Sheffield CCG,31/07/2019,C&M-PMS Contract Value,PRC DELEGATED CO-COMMISSIONING,FIRTH PARK SURGERY,28017366,"74,885.12"
Department of Health,NHS Sheffield CCG,31/07/2019,C&M-PMS PCN DES Participation,PRC DELEGATED CO-COMMISSIONING,FIRTH PARK SURGERY,28017366,"4,405.54"
Department of Health,NHS Sheffield CCG,31/07/2019,C&M-PMS Prem Notional Rent,PRC DELEGATED CO-COMMISSIONING,FIRTH PARK SURGERY,28017366,"4,500.00"
Department of Health,NHS Sheffield CCG,31/07/2019,C&M-PMS Prem Rates,PRC DELEGATED CO-COMMISSIONING,FIRTH PARK SURGERY,28017366,"1,360.00"
Department of Health,NHS Sheffield CCG,31/07/2019,C&M-PMS QOF Aspiration,PRC DELEGATED CO-COMMISSIONING,FIRTH PARK SURGERY,28017366,"7,493.92"
Department of Health,NHS Sheffield CCG,31/07/2019,C&M-PMS Contract Value,PRC DELEGATED CO-COMMISSIONING,FORGE HEALTH GROUP,28017415,"116,102.53"
Department of Health,NHS Sheffield CCG,31/07/2019,C&M-PMS DES Extended Hours Access,PRC DELEGATED CO-COMMISSIONING,FORGE HEALTH GROUP,28017415,"6,869.48"
Department of Health,NHS Sheffield CCG,31/07/2019,C&M-PMS DES Learn Dsblty Hlth Chk,PRC DELEGATED CO-COMMISSIONING,FORGE HEALTH GROUP,28017415,"1,120.00"
Department of Health,NHS Sheffield CCG,31/07/2019,C&M-PMS Out of Hours Opt Outs,PRC DELEGATED CO-COMMISSIONING,FORGE HEALTH GROUP,28017415,10.15
Department of Health,NHS Sheffield CCG,31/07/2019,C&M-PMS PCN DES Clinical Director,PRC DELEGATED CO-COMMISSIONING,FORGE HEALTH GROUP,28017415,"3,212.84"
Department of Health,NHS Sheffield CCG,31/07/2019,C&M-PMS PCN DES PCN support,LOCAL ENHANCED SERVICES,FORGE HEALTH GROUP,28017415,"28,128.00"
Department of Health,NHS Sheffield CCG,31/07/2019,C&M-PMS PCN DES Participation,PRC DELEGATED CO-COMMISSIONING,FORGE HEALTH GROUP,28017415,"6,675.46"
Department of Health,NHS Sheffield CCG,31/07/2019,C&M-PMS PCO Locum Adop/Pat/Mat,PRC DELEGATED CO-COMMISSIONING,FORGE HEALTH GROUP,28017415,"10,750.02"
Department of Health,NHS Sheffield CCG,31/07/2019,C&M-PMS Prem Healthcentre Rent,PRC DELEGATED CO-COMMISSIONING,FORGE HEALTH GROUP,28017415,"32,899.56"
Department of Health,NHS Sheffield CCG,31/07/2019,C&M-PMS Prem Notional Rent,PRC DELEGATED CO-COMMISSIONING,FORGE HEALTH GROUP,28017415,"9,650.00"
Department of Health,NHS Sheffield CCG,31/07/2019,C&M-PMS Prem Rates,PRC DELEGATED CO-COMMISSIONING,FORGE HEALTH GROUP,28017415,"1,990.00"
Department of Health,NHS Sheffield CCG,31/07/2019,C&M-PMS QOF Achievement,PRC DELEGATED CO-COMMISSIONING,FORGE HEALTH GROUP,28017415,"22,246.94"
Department of Health,NHS Sheffield CCG,31/07/2019,C&M-PMS QOF Aspiration,PRC DELEGATED CO-COMMISSIONING,FORGE HEALTH GROUP,28017415,"20,369.74"
Department of Health,NHS Sheffield CCG,31/07/2019,Cont Care-Physical Disab (<65),CHC ADULT FULLY FUNDED,FOUR SEASONS HEALTH CARE LTD,28087830,"38,604.27"
Department of Health,NHS Sheffield CCG,31/07/2019,C&M-PMS Contract Value,PRC DELEGATED CO-COMMISSIONING,FOXHILL MEDICAL CENTRE SHEFFIELD,28017413,"51,797.16"
Department of Health,NHS Sheffield CCG,31/07/2019,C&M-PMS PCN DES Participation,PRC DELEGATED CO-COMMISSIONING,FOXHILL MEDICAL CENTRE SHEFFIELD,28017413,"2,933.36"
Department of Health,NHS Sheffield CCG,31/07/2019,C&M-PMS Prem Healthcentre Rent,PRC DELEGATED CO-COMMISSIONING,FOXHILL MEDICAL CENTRE SHEFFIELD,28017413,"46,751.17"
Department of Health,NHS Sheffield CCG,31/07/2019,C&M-PMS QOF Aspiration,PRC DELEGATED CO-COMMISSIONING,FOXHILL MEDICAL CENTRE SHEFFIELD,28017413,"5,618.87"
Department of Health,NHS Sheffield CCG,31/07/2019,Cont Care-Physical Disab (<65),CHC ADULT FULLY FUNDED,GLADES HEALTH CARE LTD,28087909,"28,548.79"
Department of Health,NHS Sheffield CCG,31/07/2019,C&M-PMS Contract Value,PRC DELEGATED CO-COMMISSIONING,GLEADLESS MEDICAL CENTRE,28017370,"68,911.89"
Department of Health,NHS Sheffield CCG,31/07/2019,C&M-PMS PCN DES Participation,PRC DELEGATED CO-COMMISSIONING,GLEADLESS MEDICAL CENTRE,28017370,"3,902.11"
Department of Health,NHS Sheffield CCG,31/07/2019,C&M-PMS PCO Other,PRC DELEGATED CO-COMMISSIONING,GLEADLESS MEDICAL CENTRE,28017370,551.4
Department of Health,NHS Sheffield CCG,31/07/2019,C&M-PMS Prem Notional Rent,PRC DELEGATED CO-COMMISSIONING,GLEADLESS MEDICAL CENTRE,28017370,"6,750.00"
Department of Health,NHS Sheffield CCG,31/07/2019,C&M-PMS Prem Rates,PRC DELEGATED CO-COMMISSIONING,GLEADLESS MEDICAL CENTRE,28017370,"1,657.00"
Department of Health,NHS Sheffield CCG,31/07/2019,C&M-PMS Prem Water Rates,PRC DELEGATED CO-COMMISSIONING,GLEADLESS MEDICAL CENTRE,28017370,228.9
Department of Health,NHS Sheffield CCG,31/07/2019,C&M-PMS QOF Aspiration,PRC DELEGATED CO-COMMISSIONING,GLEADLESS MEDICAL CENTRE,28017370,"7,710.90"
Department of Health,NHS Sheffield CCG,31/07/2019,C&M-GMS Cost of Drugs -Prescribing,LOCAL ENHANCED SERVICES,GRENOSIDE SURGERY,28251902,"1,326.76"
Department of Health,NHS Sheffield CCG,31/07/2019,C&M-GMS Global Sum,PRC DELEGATED CO-COMMISSIONING,GRENOSIDE SURGERY,28251902,"58,732.94"
Department of Health,NHS Sheffield CCG,31/07/2019,C&M-GMS PCN DES Participation,PRC DELEGATED CO-COMMISSIONING,GRENOSIDE SURGERY,28251902,"3,570.74"
Department of Health,NHS Sheffield CCG,31/07/2019,C&M-GMS PCO Other,PRC DELEGATED CO-COMMISSIONING,GRENOSIDE SURGERY,28251902,475.5
Department of Health,NHS Sheffield CCG,31/07/2019,C&M-GMS Prem Notional Rent,PRC DELEGATED CO-COMMISSIONING,GRENOSIDE SURGERY,28251902,"8,110.42"
Department of Health,NHS Sheffield CCG,31/07/2019,C&M-GMS Prem Rates,PRC DELEGATED CO-COMMISSIONING,GRENOSIDE SURGERY,28251902,"2,075.00"
Department of Health,NHS Sheffield CCG,31/07/2019,C&M-GMS Prof Fees Prescribing,PRC DELEGATED CO-COMMISSIONING,GRENOSIDE SURGERY,28251902,108.23
Department of Health,NHS Sheffield CCG,31/07/2019,C&M-GMS QOF Aspiration,PRC DELEGATED CO-COMMISSIONING,GRENOSIDE SURGERY,28251902,"5,686.85"
Department of Health,NHS Sheffield CCG,31/07/2019,C&M-GMS Cost of Drugs -Prescribing,LOCAL ENHANCED SERVICES,GREYSTONES MEDICAL CENTRE,28251904,213.52
Department of Health,NHS Sheffield CCG,31/07/2019,C&M-GMS Global Sum,PRC DELEGATED CO-COMMISSIONING,GREYSTONES MEDICAL CENTRE,28251904,"19,904.44"
Department of Health,NHS Sheffield CCG,31/07/2019,C&M-GMS MPIG Correction Factor,PRC DELEGATED CO-COMMISSIONING,GREYSTONES MEDICAL CENTRE,28251904,552.23
Department of Health,NHS Sheffield CCG,31/07/2019,C&M-GMS PCN DES Participation,PRC DELEGATED CO-COMMISSIONING,GREYSTONES MEDICAL CENTRE,28251904,"1,217.82"
Department of Health,NHS Sheffield CCG,31/07/2019,C&M-GMS PCO Other,PRC DELEGATED CO-COMMISSIONING,GREYSTONES MEDICAL CENTRE,28251904,263.1
Department of Health,NHS Sheffield CCG,31/07/2019,C&M-GMS Prem Notional Rent,PRC DELEGATED CO-COMMISSIONING,GREYSTONES MEDICAL CENTRE,28251904,"2,885.42"
Department of Health,NHS Sheffield CCG,31/07/2019,C&M-GMS Prem Rates,PRC DELEGATED CO-COMMISSIONING,GREYSTONES MEDICAL CENTRE,28251904,606
Department of Health,NHS Sheffield CCG,31/07/2019,C&M-GMS Prof Fees Prescribing,PRC DELEGATED CO-COMMISSIONING,GREYSTONES MEDICAL CENTRE,28251904,31.27
Department of Health,NHS Sheffield CCG,31/07/2019,C&M-GMS QOF Aspiration,PRC DELEGATED CO-COMMISSIONING,GREYSTONES MEDICAL CENTRE,28251904,"2,314.72"
Department of Health,NHS Sheffield CCG,31/07/2019,C&M-PMS Contract Value,PRC DELEGATED CO-COMMISSIONING,HACKENTHORPE MEDICAL CENTRE,28017372,"48,840.30"
Department of Health,NHS Sheffield CCG,31/07/2019,C&M-PMS PCN DES Participation,PRC DELEGATED CO-COMMISSIONING,HACKENTHORPE MEDICAL CENTRE,28017372,"2,780.57"
Department of Health,NHS Sheffield CCG,31/07/2019,C&M-PMS PCO Other,PRC DELEGATED CO-COMMISSIONING,HACKENTHORPE MEDICAL CENTRE,28017372,435.2
Department of Health,NHS Sheffield CCG,31/07/2019,C&M-PMS Prem Notional Rent,PRC DELEGATED CO-COMMISSIONING,HACKENTHORPE MEDICAL CENTRE,28017372,"5,116.67"
Department of Health,NHS Sheffield CCG,31/07/2019,C&M-PMS Prem Rates,PRC DELEGATED CO-COMMISSIONING,HACKENTHORPE MEDICAL CENTRE,28017372,"1,363.00"
Department of Health,NHS Sheffield CCG,31/07/2019,C&M-PMS QOF Aspiration,PRC DELEGATED CO-COMMISSIONING,HACKENTHORPE MEDICAL CENTRE,28017372,"6,528.39"
Department of Health,NHS Sheffield CCG,31/07/2019,C&M-GMS Cost of Drugs -Prescribing,LOCAL ENHANCED SERVICES,HANDSWORTH MEDICAL PRACTICE SHEFFIELD,28251900,"1,028.10"
Department of Health,NHS Sheffield CCG,31/07/2019,C&M-GMS Global Sum,PRC DELEGATED CO-COMMISSIONING,HANDSWORTH MEDICAL PRACTICE SHEFFIELD,28251900,"78,043.04"
Department of Health,NHS Sheffield CCG,31/07/2019,C&M-GMS PCN DES Participation,PRC DELEGATED CO-COMMISSIONING,HANDSWORTH MEDICAL PRACTICE SHEFFIELD,28251900,"4,701.18"
Department of Health,NHS Sheffield CCG,31/07/2019,C&M-GMS Prem Notional Rent,PRC DELEGATED CO-COMMISSIONING,HANDSWORTH MEDICAL PRACTICE SHEFFIELD,28251900,"3,321.66"
Department of Health,NHS Sheffield CCG,31/07/2019,C&M-GMS Prem Water Rates,PRC DELEGATED CO-COMMISSIONING,HANDSWORTH MEDICAL PRACTICE SHEFFIELD,28251900,294.7
Department of Health,NHS Sheffield CCG,31/07/2019,C&M-GMS Prof Fees Prescribing,PRC DELEGATED CO-COMMISSIONING,HANDSWORTH MEDICAL PRACTICE SHEFFIELD,28251900,252.53
Department of Health,NHS Sheffield CCG,31/07/2019,C&M-GMS QOF Aspiration,PRC DELEGATED CO-COMMISSIONING,HANDSWORTH MEDICAL PRACTICE SHEFFIELD,28251900,"7,811.29"
Department of Health,NHS Sheffield CCG,31/07/2019,C&M-GMS Global Sum,PRC DELEGATED CO-COMMISSIONING,HAROLD STREET MEDICAL CENTRE,28251897,"20,028.92"
Department of Health,NHS Sheffield CCG,31/07/2019,C&M-GMS PCN DES Participation,PRC DELEGATED CO-COMMISSIONING,HAROLD STREET MEDICAL CENTRE,28251897,"1,297.43"
Department of Health,NHS Sheffield CCG,31/07/2019,C&M-GMS Prem Notional Rent,PRC DELEGATED CO-COMMISSIONING,HAROLD STREET MEDICAL CENTRE,28251897,"2,337.50"
Department of Health,NHS Sheffield CCG,31/07/2019,C&M-GMS QOF Aspiration,PRC DELEGATED CO-COMMISSIONING,HAROLD STREET MEDICAL CENTRE,28251897,"2,228.59"
Department of Health,NHS Sheffield CCG,31/07/2019,C&M-GMS Cost of Drugs -Prescribing,LOCAL ENHANCED SERVICES,HEALTH CARE SURGERY,28251910,928.94
Department of Health,NHS Sheffield CCG,31/07/2019,C&M-GMS Global Sum,PRC DELEGATED CO-COMMISSIONING,HEALTH CARE SURGERY,28251910,"37,938.75"
Department of Health,NHS Sheffield CCG,31/07/2019,C&M-GMS MPIG Correction Factor,PRC DELEGATED CO-COMMISSIONING,HEALTH CARE SURGERY,28251910,390.01
Department of Health,NHS Sheffield CCG,31/07/2019,C&M-GMS PCN DES Participation,PRC DELEGATED CO-COMMISSIONING,HEALTH CARE SURGERY,28251910,"2,390.30"
Department of Health,NHS Sheffield CCG,31/07/2019,C&M-GMS PCO Locum Adop/Pat/Mat,PRC DELEGATED CO-COMMISSIONING,HEALTH CARE SURGERY,28251910,"12,894.28"
Department of Health,NHS Sheffield CCG,31/07/2019,C&M-GMS PCO Other,PRC DELEGATED CO-COMMISSIONING,HEALTH CARE SURGERY,28251910,"1,368.40"
Department of Health,NHS Sheffield CCG,31/07/2019,C&M-GMS Prem Notional Rent,PRC DELEGATED CO-COMMISSIONING,HEALTH CARE SURGERY,28251910,"3,862.50"
Department of Health,NHS Sheffield CCG,31/07/2019,C&M-GMS Prem Rates,PRC DELEGATED CO-COMMISSIONING,HEALTH CARE SURGERY,28251910,645.88
Department of Health,NHS Sheffield CCG,31/07/2019,C&M-GMS Prof Fees Prescribing,PRC DELEGATED CO-COMMISSIONING,HEALTH CARE SURGERY,28251910,79.37
Department of Health,NHS Sheffield CCG,31/07/2019,C&M-GMS QOF Aspiration,PRC DELEGATED CO-COMMISSIONING,HEALTH CARE SURGERY,28251910,"4,056.36"
Department of Health,NHS Sheffield CCG,31/07/2019,C&M-GMS Cost of Drugs -Prescribing,LOCAL ENHANCED SERVICES,HEELEY GREEN SURGERY,28251906,685.99
Department of Health,NHS Sheffield CCG,31/07/2019,C&M-GMS Global Sum,PRC DELEGATED CO-COMMISSIONING,HEELEY GREEN SURGERY,28251906,"42,332.96"
Department of Health,NHS Sheffield CCG,31/07/2019,C&M-GMS MPIG Correction Factor,PRC DELEGATED CO-COMMISSIONING,HEELEY GREEN SURGERY,28251906,188.1
Department of Health,NHS Sheffield CCG,31/07/2019,C&M-GMS PCN DES Participation,PRC DELEGATED CO-COMMISSIONING,HEELEY GREEN SURGERY,28251906,"2,625.00"
Department of Health,NHS Sheffield CCG,31/07/2019,C&M-GMS Prem Notional Rent,PRC DELEGATED CO-COMMISSIONING,HEELEY GREEN SURGERY,28251906,"3,254.17"
Department of Health,NHS Sheffield CCG,31/07/2019,C&M-GMS Prem Rates,PRC DELEGATED CO-COMMISSIONING,HEELEY GREEN SURGERY,28251906,305
Department of Health,NHS Sheffield CCG,31/07/2019,C&M-GMS Prof Fees Prescribing,PRC DELEGATED CO-COMMISSIONING,HEELEY GREEN SURGERY,28251906,141.9
Department of Health,NHS Sheffield CCG,31/07/2019,C&M-GMS QOF Aspiration,PRC DELEGATED CO-COMMISSIONING,HEELEY GREEN SURGERY,28251906,"4,709.02"
Department of Health,NHS Sheffield CCG,31/07/2019,C&M-GMS Cost of Drugs -Prescribing,LOCAL ENHANCED SERVICES,HOLLIES MEDICAL CENTRE,28251908,886.17
Department of Health,NHS Sheffield CCG,31/07/2019,C&M-GMS Global Sum,PRC DELEGATED CO-COMMISSIONING,HOLLIES MEDICAL CENTRE,28251908,"60,818.24"
Department of Health,NHS Sheffield CCG,31/07/2019,C&M-GMS MPIG Correction Factor,PRC DELEGATED CO-COMMISSIONING,HOLLIES MEDICAL CENTRE,28251908,726.36
Department of Health,NHS Sheffield CCG,31/07/2019,C&M-GMS PCN DES Participation,PRC DELEGATED CO-COMMISSIONING,HOLLIES MEDICAL CENTRE,28251908,"3,646.80"
Department of Health,NHS Sheffield CCG,31/07/2019,C&M-GMS Prem Notional Rent,PRC DELEGATED CO-COMMISSIONING,HOLLIES MEDICAL CENTRE,28251908,"3,229.17"
Department of Health,NHS Sheffield CCG,31/07/2019,C&M-GMS Prof Fees Prescribing,PRC DELEGATED CO-COMMISSIONING,HOLLIES MEDICAL CENTRE,28251908,98.63
Department of Health,NHS Sheffield CCG,31/07/2019,C&M-GMS QOF Aspiration,PRC DELEGATED CO-COMMISSIONING,HOLLIES MEDICAL CENTRE,28251908,"6,991.81"
Department of Health,NHS Sheffield CCG,31/07/2019,Cont Care-Physical Disab (<65),CHC ADULT FULLY FUNDED,HORIZON CARE HOMES LTD,28087912,"43,272.97"
Department of Health,NHS Sheffield CCG,31/07/2019,Cont Care-Physical Disab (<65),CHC ADULT FULLY FUNDED,HORIZON CARE HOMES LTD,28123202,"48,953.07"
Department of Health,NHS Sheffield CCG,31/07/2019,C&M-PMS Contract Value,PRC DELEGATED CO-COMMISSIONING,JAUNTY SPRINGS HEALTH CENTRE,28017374,"30,921.93"
Department of Health,NHS Sheffield CCG,31/07/2019,C&M-PMS DES Extended Hours Access,PRC DELEGATED CO-COMMISSIONING,JAUNTY SPRINGS HEALTH CENTRE,28017374,"4,210.64"
Department of Health,NHS Sheffield CCG,31/07/2019,C&M-PMS PCN DES Clinical Director,PRC DELEGATED CO-COMMISSIONING,JAUNTY SPRINGS HEALTH CENTRE,28017374,"1,969.31"
Department of Health,NHS Sheffield CCG,31/07/2019,C&M-PMS PCN DES PCN support,LOCAL ENHANCED SERVICES,JAUNTY SPRINGS HEALTH CENTRE,28017374,"17,241.00"
Department of Health,NHS Sheffield CCG,31/07/2019,C&M-PMS PCN DES Participation,PRC DELEGATED CO-COMMISSIONING,JAUNTY SPRINGS HEALTH CENTRE,28017374,"1,749.23"
Department of Health,NHS Sheffield CCG,31/07/2019,C&M-PMS PCO Other,PRC DELEGATED CO-COMMISSIONING,JAUNTY SPRINGS HEALTH CENTRE,28017374,263.6
Department of Health,NHS Sheffield CCG,31/07/2019,C&M-PMS Prem Notional Rent,PRC DELEGATED CO-COMMISSIONING,JAUNTY SPRINGS HEALTH CENTRE,28017374,"3,208.33"
Department of Health,NHS Sheffield CCG,31/07/2019,C&M-PMS Prem Rates,PRC DELEGATED CO-COMMISSIONING,JAUNTY SPRINGS HEALTH CENTRE,28017374,710
Department of Health,NHS Sheffield CCG,31/07/2019,C&M-PMS Prem Water Rates,PRC DELEGATED CO-COMMISSIONING,JAUNTY SPRINGS HEALTH CENTRE,28017374,53.35
Department of Health,NHS Sheffield CCG,31/07/2019,C&M-PMS QOF Aspiration,PRC DELEGATED CO-COMMISSIONING,JAUNTY SPRINGS HEALTH CENTRE,28017374,"4,020.11"
Department of Health,NHS Sheffield CCG,31/07/2019,C&M-GMS IT Comm Servs -GP Practices,PRIMARY CARE IT,KIER BUSINESS SERVICES LTD,28051193,"100,142.40"
Department of Health,NHS Sheffield CCG,31/07/2019,FM Computer Contracts,BUSINESS INFORMATICS,KIER BUSINESS SERVICES LTD,28051193,"36,193.20"
Department of Health,NHS Sheffield CCG,31/07/2019,C&M-GMS LES Translation Fees,INTERPRETING SERVICES,LANGUAGELINE SOLUTIONS,28051082,"45,086.64"
Department of Health,NHS Sheffield CCG,31/07/2019,C&M-GMS LES Translation Fees,INTERPRETING SERVICES,LANGUAGELINE SOLUTIONS,28062894,"27,709.20"
Department of Health,NHS Sheffield CCG,31/07/2019,Hcare Srv Rec NHS Trust-Contract Baseline,ACUTE COMMISSIONING,LEEDS TEACHING HOSPITALS NHS TRUST,28050928,"57,500.00"
Department of Health,NHS Sheffield CCG,31/07/2019,Cont Care-Physical Disab (<65),CHC ADULT FULLY FUNDED,LONGLEY HEALTH CARE LTD,28123194,"92,977.05"
Department of Health,NHS Sheffield CCG,31/07/2019,Cont Care-Physical Disab (<65),CHC ADULT FULLY FUNDED,LOXLEY HEALTH CARE LTD,28123181,"52,936.09"
Department of Health,NHS Sheffield CCG,31/07/2019,C&M-PMS Contract Value,PRC DELEGATED CO-COMMISSIONING,MANCHESTER ROAD SURGERY SHEFFIELD,28017378,"32,736.01"
Department of Health,NHS Sheffield CCG,31/07/2019,C&M-PMS PCN DES Participation,PRC DELEGATED CO-COMMISSIONING,MANCHESTER ROAD SURGERY SHEFFIELD,28017378,"1,854.95"
Department of Health,NHS Sheffield CCG,31/07/2019,C&M-PMS Prem Cost Rent,PRC DELEGATED CO-COMMISSIONING,MANCHESTER ROAD SURGERY SHEFFIELD,28017378,"3,472.17"
Department of Health,NHS Sheffield CCG,31/07/2019,C&M-PMS Prem Notional Rent,PRC DELEGATED CO-COMMISSIONING,MANCHESTER ROAD SURGERY SHEFFIELD,28017378,442.92
Department of Health,NHS Sheffield CCG,31/07/2019,C&M-PMS Prem Rates,PRC DELEGATED CO-COMMISSIONING,MANCHESTER ROAD SURGERY SHEFFIELD,28017378,970
Department of Health,NHS Sheffield CCG,31/07/2019,C&M-PMS Prem Water Rates,PRC DELEGATED CO-COMMISSIONING,MANCHESTER ROAD SURGERY SHEFFIELD,28017378,50.64
Department of Health,NHS Sheffield CCG,31/07/2019,C&M-PMS QOF Aspiration,PRC DELEGATED CO-COMMISSIONING,MANCHESTER ROAD SURGERY SHEFFIELD,28017378,"3,985.36"
Department of Health,NHS Sheffield CCG,31/07/2019,C&M-PMS Contract Value,PRC DELEGATED CO-COMMISSIONING,MANOR & PARK GROUP PRACTICE,28021004,"72,704.78"
Department of Health,NHS Sheffield CCG,31/07/2019,C&M-PMS Out of Hours Opt Outs,PRC DELEGATED CO-COMMISSIONING,MANOR & PARK GROUP PRACTICE,28021004,48.14
Department of Health,NHS Sheffield CCG,31/07/2019,C&M-PMS PCN DES Participation,PRC DELEGATED CO-COMMISSIONING,MANOR & PARK GROUP PRACTICE,28021004,"4,336.04"
Department of Health,NHS Sheffield CCG,31/07/2019,C&M-PMS Prem Notional Rent,PRC DELEGATED CO-COMMISSIONING,MANOR & PARK GROUP PRACTICE,28021004,"9,050.00"
Department of Health,NHS Sheffield CCG,31/07/2019,C&M-PMS Prem Rates,PRC DELEGATED CO-COMMISSIONING,MANOR & PARK GROUP PRACTICE,28021004,"1,747.00"
Department of Health,NHS Sheffield CCG,31/07/2019,C&M-PMS Prem Water Rates,PRC DELEGATED CO-COMMISSIONING,MANOR & PARK GROUP PRACTICE,28021004,"1,476.30"
Department of Health,NHS Sheffield CCG,31/07/2019,C&M-PMS QOF Aspiration,PRC DELEGATED CO-COMMISSIONING,MANOR & PARK GROUP PRACTICE,28021004,"7,420.75"
Department of Health,NHS Sheffield CCG,31/07/2019,C&M-GMS Cost of Drugs -Prescribing,LOCAL ENHANCED SERVICES,MATHEWS PRACTICE,28251917,401.83
Department of Health,NHS Sheffield CCG,31/07/2019,C&M-GMS Global Sum,PRC DELEGATED CO-COMMISSIONING,MATHEWS PRACTICE,28251917,"59,605.03"
Department of Health,NHS Sheffield CCG,31/07/2019,C&M-GMS MPIG Correction Factor,PRC DELEGATED CO-COMMISSIONING,MATHEWS PRACTICE,28251917,299.48
Department of Health,NHS Sheffield CCG,31/07/2019,C&M-GMS PCN DES Participation,PRC DELEGATED CO-COMMISSIONING,MATHEWS PRACTICE,28251917,"3,844.92"
Department of Health,NHS Sheffield CCG,31/07/2019,C&M-GMS Prem Notional Rent,PRC DELEGATED CO-COMMISSIONING,MATHEWS PRACTICE,28251917,"8,660.42"
Department of Health,NHS Sheffield CCG,31/07/2019,C&M-GMS Prem Rates,PRC DELEGATED CO-COMMISSIONING,MATHEWS PRACTICE,28251917,"2,148.00"
Department of Health,NHS Sheffield CCG,31/07/2019,C&M-GMS Prof Fees Prescribing,PRC DELEGATED CO-COMMISSIONING,MATHEWS PRACTICE,28251917,158.74
Department of Health,NHS Sheffield CCG,31/07/2019,C&M-GMS QOF Aspiration,PRC DELEGATED CO-COMMISSIONING,MATHEWS PRACTICE,28251917,"7,156.84"
Department of Health,NHS Sheffield CCG,31/07/2019,C&M-PMS Contract Value,PRC DELEGATED CO-COMMISSIONING,MEADOWHEAD GROUP PRACTICE,28017376,"74,062.74"
Department of Health,NHS Sheffield CCG,31/07/2019,C&M-PMS Out of Hours Opt Outs,PRC DELEGATED CO-COMMISSIONING,MEADOWHEAD GROUP PRACTICE,28017376,20.35
Department of Health,NHS Sheffield CCG,31/07/2019,C&M-PMS PCN DES Participation,PRC DELEGATED CO-COMMISSIONING,MEADOWHEAD GROUP PRACTICE,28017376,"4,210.45"
Department of Health,NHS Sheffield CCG,31/07/2019,C&M-PMS PCO Locum Adop/Pat/Mat,PRC DELEGATED CO-COMMISSIONING,MEADOWHEAD GROUP PRACTICE,28017376,"9,257.67"
Department of Health,NHS Sheffield CCG,31/07/2019,C&M-PMS PCO Other,PRC DELEGATED CO-COMMISSIONING,MEADOWHEAD GROUP PRACTICE,28017376,"5,895.00"
Department of Health,NHS Sheffield CCG,31/07/2019,C&M-PMS Prem Cost Rent,PRC DELEGATED CO-COMMISSIONING,MEADOWHEAD GROUP PRACTICE,28017376,"3,647.42"
Department of Health,NHS Sheffield CCG,31/07/2019,C&M-PMS Prem Notional Rent,PRC DELEGATED CO-COMMISSIONING,MEADOWHEAD GROUP PRACTICE,28017376,"3,358.33"
Department of Health,NHS Sheffield CCG,31/07/2019,C&M-PMS Prem Rates,PRC DELEGATED CO-COMMISSIONING,MEADOWHEAD GROUP PRACTICE,28017376,"1,870.00"
Department of Health,NHS Sheffield CCG,31/07/2019,C&M-PMS QOF Aspiration,PRC DELEGATED CO-COMMISSIONING,MEADOWHEAD GROUP PRACTICE,28017376,"9,076.52"
Department of Health,NHS Sheffield CCG,31/07/2019,C&M-GMS Cost of Drugs -Prescribing,LOCAL ENHANCED SERVICES,MEDICAL CENTRE CRYSTAL PEAKS,28251914,"1,216.69"
Department of Health,NHS Sheffield CCG,31/07/2019,C&M-GMS Global Sum,PRC DELEGATED CO-COMMISSIONING,MEDICAL CENTRE CRYSTAL PEAKS,28251914,"46,652.50"
Department of Health,NHS Sheffield CCG,31/07/2019,C&M-GMS MPIG Correction Factor,PRC DELEGATED CO-COMMISSIONING,MEDICAL CENTRE CRYSTAL PEAKS,28251914,565.67
Department of Health,NHS Sheffield CCG,31/07/2019,C&M-GMS PCN DES Participation,PRC DELEGATED CO-COMMISSIONING,MEDICAL CENTRE CRYSTAL PEAKS,28251914,"2,849.99"
Department of Health,NHS Sheffield CCG,31/07/2019,C&M-GMS PCO Other,PRC DELEGATED CO-COMMISSIONING,MEDICAL CENTRE CRYSTAL PEAKS,28251914,426.6
Department of Health,NHS Sheffield CCG,31/07/2019,C&M-GMS Prem Actual Rent,PRC DELEGATED CO-COMMISSIONING,MEDICAL CENTRE CRYSTAL PEAKS,28251914,"17,610.00"
Department of Health,NHS Sheffield CCG,31/07/2019,C&M-GMS Prem Notional Rent,PRC DELEGATED CO-COMMISSIONING,MEDICAL CENTRE CRYSTAL PEAKS,28251914,270
Department of Health,NHS Sheffield CCG,31/07/2019,C&M-GMS Prem Rates,PRC DELEGATED CO-COMMISSIONING,MEDICAL CENTRE CRYSTAL PEAKS,28251914,"1,056.00"
Department of Health,NHS Sheffield CCG,31/07/2019,C&M-GMS Prof Fees Prescribing,PRC DELEGATED CO-COMMISSIONING,MEDICAL CENTRE CRYSTAL PEAKS,28251914,274.19
Department of Health,NHS Sheffield CCG,31/07/2019,C&M-GMS QOF Aspiration,PRC DELEGATED CO-COMMISSIONING,MEDICAL CENTRE CRYSTAL PEAKS,28251914,"6,211.79"
Department of Health,NHS Sheffield CCG,31/07/2019,C&M-GMS Cost of Drugs -Prescribing,LOCAL ENHANCED SERVICES,MILL ROAD SURGERY SHEFFIELD,28251920,916.48
Department of Health,NHS Sheffield CCG,31/07/2019,C&M-GMS Global Sum,PRC DELEGATED CO-COMMISSIONING,MILL ROAD SURGERY SHEFFIELD,28251920,"40,804.73"
Department of Health,NHS Sheffield CCG,31/07/2019,C&M-GMS MPIG Correction Factor,PRC DELEGATED CO-COMMISSIONING,MILL ROAD SURGERY SHEFFIELD,28251920,61.02
Department of Health,NHS Sheffield CCG,31/07/2019,C&M-GMS PCN DES Participation,PRC DELEGATED CO-COMMISSIONING,MILL ROAD SURGERY SHEFFIELD,28251920,"2,527.32"
Department of Health,NHS Sheffield CCG,31/07/2019,C&M-GMS PCO Other,PRC DELEGATED CO-COMMISSIONING,MILL ROAD SURGERY SHEFFIELD,28251920,352.7
Department of Health,NHS Sheffield CCG,31/07/2019,C&M-GMS Prem Notional Rent,PRC DELEGATED CO-COMMISSIONING,MILL ROAD SURGERY SHEFFIELD,28251920,"4,593.33"
Department of Health,NHS Sheffield CCG,31/07/2019,C&M-GMS Prem Rates,PRC DELEGATED CO-COMMISSIONING,MILL ROAD SURGERY SHEFFIELD,28251920,"1,056.00"
Department of Health,NHS Sheffield CCG,31/07/2019,C&M-GMS Prof Fees Prescribing,PRC DELEGATED CO-COMMISSIONING,MILL ROAD SURGERY SHEFFIELD,28251920,120.26
Department of Health,NHS Sheffield CCG,31/07/2019,C&M-GMS QOF Aspiration,PRC DELEGATED CO-COMMISSIONING,MILL ROAD SURGERY SHEFFIELD,28251920,"5,088.50"
Department of Health,NHS Sheffield CCG,31/07/2019,Clinical&Medical-Independent Sector,Mental Health Services - S117 Mental Health,MOORVILLE RESIDENTIAL,27964832,"15,062.28"
Department of Health,NHS Sheffield CCG,31/07/2019,Cont Care-Learning Disab(<65),CHC ADULT FULLY FUNDED,MOORVILLE RESIDENTIAL,27964832,"20,005.23"
Department of Health,NHS Sheffield CCG,31/07/2019,Cont Care-Learning Disab(<65),CHC ADULT JOINT FUNDED,MOORVILLE RESIDENTIAL,27964832,"1,212.72"
Department of Health,NHS Sheffield CCG,31/07/2019,Cont Care-Mental Health (<65),CHC ADULT JOINT FUNDED,MOORVILLE RESIDENTIAL,27964832,491.66
Department of Health,NHS Sheffield CCG,31/07/2019,C&M-PMS Contract Value,PRC DELEGATED CO-COMMISSIONING,MOSBOROUGH HEALTH CENTRE,28017380,"49,222.61"
Department of Health,NHS Sheffield CCG,31/07/2019,C&M-PMS PCN DES Participation,PRC DELEGATED CO-COMMISSIONING,MOSBOROUGH HEALTH CENTRE,28017380,"2,782.14"
Department of Health,NHS Sheffield CCG,31/07/2019,C&M-PMS PCO Other,PRC DELEGATED CO-COMMISSIONING,MOSBOROUGH HEALTH CENTRE,28017380,432.2
Department of Health,NHS Sheffield CCG,31/07/2019,C&M-PMS Prem Notional Rent,PRC DELEGATED CO-COMMISSIONING,MOSBOROUGH HEALTH CENTRE,28017380,"4,091.67"
Department of Health,NHS Sheffield CCG,31/07/2019,C&M-PMS Prem Rates,PRC DELEGATED CO-COMMISSIONING,MOSBOROUGH HEALTH CENTRE,28017380,"1,105.00"
Department of Health,NHS Sheffield CCG,31/07/2019,C&M-PMS QOF Aspiration,PRC DELEGATED CO-COMMISSIONING,MOSBOROUGH HEALTH CENTRE,28017380,"5,736.56"
Department of Health,NHS Sheffield CCG,31/07/2019,C&M-PMS Contract Value,PRC DELEGATED CO-COMMISSIONING,NETHERGREEN SURGERY,28017382,"63,791.23"
Department of Health,NHS Sheffield CCG,31/07/2019,C&M-PMS PCN DES Participation,PRC DELEGATED CO-COMMISSIONING,NETHERGREEN SURGERY,28017382,"3,624.93"
Department of Health,NHS Sheffield CCG,31/07/2019,C&M-PMS Prem Cost Rent,PRC DELEGATED CO-COMMISSIONING,NETHERGREEN SURGERY,28017382,"5,057.33"
Department of Health,NHS Sheffield CCG,31/07/2019,C&M-PMS Prem Rates,PRC DELEGATED CO-COMMISSIONING,NETHERGREEN SURGERY,28017382,"1,264.00"
Department of Health,NHS Sheffield CCG,31/07/2019,C&M-PMS QOF Aspiration,PRC DELEGATED CO-COMMISSIONING,NETHERGREEN SURGERY,28017382,"6,406.79"
Department of Health,NHS Sheffield CCG,31/07/2019,Other Gen Supplies & Srv,BEREAVEMENT SERVICE,NHS DONCASTER CCG,28123267,"79,000.00"
Department of Health,NHS Sheffield CCG,31/07/2019,C&M-GMS Prem Other,PRC DELEGATED CO-COMMISSIONING,NHS ENGLAND,28256616,"1,842.07"
Department of Health,NHS Sheffield CCG,31/07/2019,Contract- Refuse & Clinical Waste,PRC DELEGATED CO-COMMISSIONING,NHS ENGLAND,28256616,"95,194.73"
Department of Health,NHS Sheffield CCG,31/07/2019,Charges from CSU,BUSINESS INFORMATICS,NHS NORTH OF ENGLAND CSU,28209040,"27,376.00"
Department of Health,NHS Sheffield CCG,31/07/2019,Voids and Subsidies,RECHARGES NHS PROPERTY SERVICES LTD,NHS PROPERTY SERVICES LTD,28024201,"39,095.90"
Department of Health,NHS Sheffield CCG,31/07/2019,Voids and Subsidies,RECHARGES NHS PROPERTY SERVICES LTD,NHS PROPERTY SERVICES LTD,28024240,"25,122.04"
Department of Health,NHS Sheffield CCG,31/07/2019,Rent,CONTINUING HEALTHCARE ASSESSMENT & SUPPORT,NHS PROPERTY SERVICES LTD,28123088,"25,637.05"
Department of Health,NHS Sheffield CCG,31/07/2019,Rent,ESTATES AND FACILITIES,NHS PROPERTY SERVICES LTD,28123088,"75,874.00"
Department of Health,NHS Sheffield CCG,31/07/2019,Service Charge,CONTINUING HEALTHCARE ASSESSMENT & SUPPORT,NHS PROPERTY SERVICES LTD,28123088,"10,301.62"
Department of Health,NHS Sheffield CCG,31/07/2019,Service Charge,ESTATES AND FACILITIES,NHS PROPERTY SERVICES LTD,28123088,"30,480.72"
Department of Health,NHS Sheffield CCG,31/07/2019,Voids and Subsidies,RECHARGES NHS PROPERTY SERVICES LTD,NHS PROPERTY SERVICES LTD,28185744,"39,324.00"
Department of Health,NHS Sheffield CCG,31/07/2019,Voids and Subsidies,RECHARGES NHS PROPERTY SERVICES LTD,NHS PROPERTY SERVICES LTD,28185746,"25,268.65"
Department of Health,NHS Sheffield CCG,31/07/2019,Rent,CONTINUING HEALTHCARE ASSESSMENT & SUPPORT,NHS PROPERTY SERVICES LTD,28256496,"25,637.05"
Department of Health,NHS Sheffield CCG,31/07/2019,Rent,ESTATES AND FACILITIES,NHS PROPERTY SERVICES LTD,28256496,"75,874.00"
Department of Health,NHS Sheffield CCG,31/07/2019,Service Charge,CONTINUING HEALTHCARE ASSESSMENT & SUPPORT,NHS PROPERTY SERVICES LTD,28256496,"9,447.17"
Department of Health,NHS Sheffield CCG,31/07/2019,Service Charge,ESTATES AND FACILITIES,NHS PROPERTY SERVICES LTD,28256496,"27,952.55"
Department of Health,NHS Sheffield CCG,31/07/2019,Service Charge,CONTINUING HEALTHCARE ASSESSMENT & SUPPORT,NHS PROPERTY SERVICES LTD,28256504,"29,393.78"
Department of Health,NHS Sheffield CCG,31/07/2019,Service Charge,ESTATES AND FACILITIES,NHS PROPERTY SERVICES LTD,28256504,"86,991.68"
Department of Health,NHS Sheffield CCG,31/07/2019,C&M-GMS Cost of Drugs -Prescribing,LOCAL ENHANCED SERVICES,NORFOLK PARK HEALTH CENTRE,28251925,744.81
Department of Health,NHS Sheffield CCG,31/07/2019,C&M-GMS Global Sum,PRC DELEGATED CO-COMMISSIONING,NORFOLK PARK HEALTH CENTRE,28251925,"39,049.58"
Department of Health,NHS Sheffield CCG,31/07/2019,C&M-GMS MPIG Correction Factor,PRC DELEGATED CO-COMMISSIONING,NORFOLK PARK HEALTH CENTRE,28251925,462.3
Department of Health,NHS Sheffield CCG,31/07/2019,C&M-GMS PCN DES Participation,PRC DELEGATED CO-COMMISSIONING,NORFOLK PARK HEALTH CENTRE,28251925,"2,290.23"
Department of Health,NHS Sheffield CCG,31/07/2019,C&M-GMS Prem Healthcentre Rent,PRC DELEGATED CO-COMMISSIONING,NORFOLK PARK HEALTH CENTRE,28251925,"24,820.01"
Department of Health,NHS Sheffield CCG,31/07/2019,C&M-GMS Prof Fees Prescribing,PRC DELEGATED CO-COMMISSIONING,NORFOLK PARK HEALTH CENTRE,28251925,125.07
Department of Health,NHS Sheffield CCG,31/07/2019,C&M-GMS QOF Aspiration,PRC DELEGATED CO-COMMISSIONING,NORFOLK PARK HEALTH CENTRE,28251925,"3,941.29"
Department of Health,NHS Sheffield CCG,31/07/2019,C&M-GMS Cost of Drugs -Prescribing,LOCAL ENHANCED SERVICES,NORWOOD MEDICAL CENTRE SHEFFIELD,28275356,389.6
Department of Health,NHS Sheffield CCG,31/07/2019,C&M-GMS Global Sum,PRC DELEGATED CO-COMMISSIONING,NORWOOD MEDICAL CENTRE SHEFFIELD,28275356,"65,351.94"
Department of Health,NHS Sheffield CCG,31/07/2019,C&M-GMS PCN DES Participation,PRC DELEGATED CO-COMMISSIONING,NORWOOD MEDICAL CENTRE SHEFFIELD,28275356,"4,012.83"
Department of Health,NHS Sheffield CCG,31/07/2019,C&M-GMS PCO Locum Sickness,PRC DELEGATED CO-COMMISSIONING,NORWOOD MEDICAL CENTRE SHEFFIELD,28275356,"12,506.00"
Department of Health,NHS Sheffield CCG,31/07/2019,C&M-GMS PCO Other,PRC DELEGATED CO-COMMISSIONING,NORWOOD MEDICAL CENTRE SHEFFIELD,28275356,"2,040.00"
Department of Health,NHS Sheffield CCG,31/07/2019,C&M-GMS Prem Notional Rent,PRC DELEGATED CO-COMMISSIONING,NORWOOD MEDICAL CENTRE SHEFFIELD,28275356,"5,187.50"
Department of Health,NHS Sheffield CCG,31/07/2019,C&M-GMS Prem Rates,PRC DELEGATED CO-COMMISSIONING,NORWOOD MEDICAL CENTRE SHEFFIELD,28275356,"1,279.00"
Department of Health,NHS Sheffield CCG,31/07/2019,C&M-GMS Prof Fees Prescribing,PRC DELEGATED CO-COMMISSIONING,NORWOOD MEDICAL CENTRE SHEFFIELD,28275356,108.23
Department of Health,NHS Sheffield CCG,31/07/2019,C&M-GMS QOF Aspiration,PRC DELEGATED CO-COMMISSIONING,NORWOOD MEDICAL CENTRE SHEFFIELD,28275356,"8,171.17"
Department of Health,NHS Sheffield CCG,31/07/2019,Clinical&Medical-Independent Sector,ACUTE COMMISSIONING,ONEHEALTH GROUP,28225976,"71,286.25"
Department of Health,NHS Sheffield CCG,31/07/2019,Clinical&Medical-Independent Sector,ACUTE COMMISSIONING,ONEHEALTH GROUP,28225992,"71,286.25"
Department of Health,NHS Sheffield CCG,31/07/2019,C&M-GMS Cost of Drugs -Dispensing,LOCAL ENHANCED SERVICES,OUGHTIBRIDGE SURGERY,28251931,"27,579.67"
Department of Health,NHS Sheffield CCG,31/07/2019,C&M-GMS Global Sum,PRC DELEGATED CO-COMMISSIONING,OUGHTIBRIDGE SURGERY,28251931,"43,122.00"
Department of Health,NHS Sheffield CCG,31/07/2019,C&M-GMS PCN DES Participation,PRC DELEGATED CO-COMMISSIONING,OUGHTIBRIDGE SURGERY,28251931,"2,667.06"
Department of Health,NHS Sheffield CCG,31/07/2019,C&M-GMS Prem Notional Rent,PRC DELEGATED CO-COMMISSIONING,OUGHTIBRIDGE SURGERY,28251931,"3,957.33"
Department of Health,NHS Sheffield CCG,31/07/2019,C&M-GMS Prem Rates,PRC DELEGATED CO-COMMISSIONING,OUGHTIBRIDGE SURGERY,28251931,895
Department of Health,NHS Sheffield CCG,31/07/2019,C&M-GMS Prem Water Rates,PRC DELEGATED CO-COMMISSIONING,OUGHTIBRIDGE SURGERY,28251931,195.03
Department of Health,NHS Sheffield CCG,31/07/2019,C&M-GMS Prof Fees Dispensing,PRC DELEGATED CO-COMMISSIONING,OUGHTIBRIDGE SURGERY,28251931,"4,876.82"
Department of Health,NHS Sheffield CCG,31/07/2019,C&M-GMS PrscrptnChrgsColl&RmttdbyGP,LOCAL ENHANCED SERVICES,OUGHTIBRIDGE SURGERY,28251931,675
Department of Health,NHS Sheffield CCG,31/07/2019,C&M-GMS QOF Aspiration,PRC DELEGATED CO-COMMISSIONING,OUGHTIBRIDGE SURGERY,28251931,"4,261.60"
Department of Health,NHS Sheffield CCG,31/07/2019,C&M-PMS Contract Value,PRC DELEGATED CO-COMMISSIONING,OWLTHORPE MEDICAL CENTRE,28017384,"33,242.63"
Department of Health,NHS Sheffield CCG,31/07/2019,C&M-PMS Out of Hours Opt Outs,PRC DELEGATED CO-COMMISSIONING,OWLTHORPE MEDICAL CENTRE,28017384,7.13
Department of Health,NHS Sheffield CCG,31/07/2019,C&M-PMS PCN DES Participation,PRC DELEGATED CO-COMMISSIONING,OWLTHORPE MEDICAL CENTRE,28017384,"1,917.17"
Department of Health,NHS Sheffield CCG,31/07/2019,C&M-PMS Prem Actual Rent,PRC DELEGATED CO-COMMISSIONING,OWLTHORPE MEDICAL CENTRE,28017384,"7,539.58"
Department of Health,NHS Sheffield CCG,31/07/2019,C&M-PMS Prem Rates,PRC DELEGATED CO-COMMISSIONING,OWLTHORPE MEDICAL CENTRE,28017384,"1,316.00"
Department of Health,NHS Sheffield CCG,31/07/2019,C&M-PMS Prem Water Rates,PRC DELEGATED CO-COMMISSIONING,OWLTHORPE MEDICAL CENTRE,28017384,103.99
Department of Health,NHS Sheffield CCG,31/07/2019,C&M-PMS QOF Aspiration,PRC DELEGATED CO-COMMISSIONING,OWLTHORPE MEDICAL CENTRE,28017384,"3,873.48"
Department of Health,NHS Sheffield CCG,31/07/2019,C&M-PMS Contract Value,PRC DELEGATED CO-COMMISSIONING,PAGE HALL MEDICAL CENTRE,28040223,"57,002.30"
Department of Health,NHS Sheffield CCG,31/07/2019,C&M-PMS Out of Hours Opt Outs,PRC DELEGATED CO-COMMISSIONING,PAGE HALL MEDICAL CENTRE,28040223,10.75
Department of Health,NHS Sheffield CCG,31/07/2019,C&M-PMS PCN DES Participation,PRC DELEGATED CO-COMMISSIONING,PAGE HALL MEDICAL CENTRE,28040223,"3,249.02"
Department of Health,NHS Sheffield CCG,31/07/2019,C&M-PMS Prem Notional Rent,PRC DELEGATED CO-COMMISSIONING,PAGE HALL MEDICAL CENTRE,28040223,"4,833.33"
Department of Health,NHS Sheffield CCG,31/07/2019,C&M-PMS Prem Rates,PRC DELEGATED CO-COMMISSIONING,PAGE HALL MEDICAL CENTRE,28040223,"1,077.00"
Department of Health,NHS Sheffield CCG,31/07/2019,C&M-PMS Prem Water Rates,PRC DELEGATED CO-COMMISSIONING,PAGE HALL MEDICAL CENTRE,28040223,225.37
Department of Health,NHS Sheffield CCG,31/07/2019,C&M-PMS QOF Aspiration,PRC DELEGATED CO-COMMISSIONING,PAGE HALL MEDICAL CENTRE,28040223,"4,558.05"
Department of Health,NHS Sheffield CCG,31/07/2019,C&M-PMS Contract Value,PRC DELEGATED CO-COMMISSIONING,PORTER BROOK MEDICAL CENTRE,28017386,"-1,045.83"
Department of Health,NHS Sheffield CCG,31/07/2019,C&M-PMS GP Statutory Levy,PRC DELEGATED CO-COMMISSIONING,PORTER BROOK MEDICAL CENTRE,28017386,-989.17
Department of Health,NHS Sheffield CCG,31/07/2019,C&M-PMS Out of Hours Opt Outs,PRC DELEGATED CO-COMMISSIONING,PORTER BROOK MEDICAL CENTRE,28017386,"-7,778.42"
Department of Health,NHS Sheffield CCG,31/07/2019,C&M-PMS Contract Value,PRC DELEGATED CO-COMMISSIONING,PORTER BROOK MEDICAL CENTRE,28017387,"166,801.76"
Department of Health,NHS Sheffield CCG,31/07/2019,C&M-PMS Out of Hours Opt Outs,PRC DELEGATED CO-COMMISSIONING,PORTER BROOK MEDICAL CENTRE,28017387,49.05
Department of Health,NHS Sheffield CCG,31/07/2019,C&M-PMS PCN DES Participation,PRC DELEGATED CO-COMMISSIONING,PORTER BROOK MEDICAL CENTRE,28017387,"9,490.40"
Department of Health,NHS Sheffield CCG,31/07/2019,C&M-PMS Prem Actual Rent,PRC DELEGATED CO-COMMISSIONING,PORTER BROOK MEDICAL CENTRE,28017387,"1,333.33"
Department of Health,NHS Sheffield CCG,31/07/2019,C&M-PMS Prem Notional Rent,PRC DELEGATED CO-COMMISSIONING,PORTER BROOK MEDICAL CENTRE,28017387,"9,666.67"
Department of Health,NHS Sheffield CCG,31/07/2019,C&M-PMS Prem Rates,PRC DELEGATED CO-COMMISSIONING,PORTER BROOK MEDICAL CENTRE,28017387,"2,271.00"
Department of Health,NHS Sheffield CCG,31/07/2019,C&M-PMS Prem Water Rates,PRC DELEGATED CO-COMMISSIONING,PORTER BROOK MEDICAL CENTRE,28017387,357.13
Department of Health,NHS Sheffield CCG,31/07/2019,C&M-PMS QOF Aspiration,PRC DELEGATED CO-COMMISSIONING,PORTER BROOK MEDICAL CENTRE,28017387,"8,838.31"
Department of Health,NHS Sheffield CCG,31/07/2019,C&M-GMS LES Equitable Funding,LOCAL ENHANCED SERVICES,PORTER BROOK MEDICAL CENTRE,28204061,"26,776.00"
Department of Health,NHS Sheffield CCG,31/07/2019,Clinical&Medical-Commercial Sector,PATIENT TRANSPORT,PREMIER CARE DIRECT LTD,27913563,"112,480.55"
Department of Health,NHS Sheffield CCG,31/07/2019,Clinical&Medical-Commercial Sector,PATIENT TRANSPORT,PREMIER CARE DIRECT LTD,28318616,"112,480.55"
Department of Health,NHS Sheffield CCG,31/07/2019,C&M-APMS DES Extended Hours Access,GP FORWARD VIEW,PRIMARY CARE SHEFFIELD LTD,27982143,"295,941.67"
Department of Health,NHS Sheffield CCG,31/07/2019,C&M-GMS LES Basket of Procedures,LOCAL ENHANCED SERVICES,PRIMARY CARE SHEFFIELD LTD,27982155,"52,308.33"
Department of Health,NHS Sheffield CCG,31/07/2019,C&M-GMS DES Extended Hours Access,PRC DELEGATED CO-COMMISSIONING,PRIMARY CARE SHEFFIELD LTD,28064985,"6,062.69"
Department of Health,NHS Sheffield CCG,31/07/2019,C&M-GMS PCN DES Clinical Director,PRC DELEGATED CO-COMMISSIONING,PRIMARY CARE SHEFFIELD LTD,28064985,"2,835.51"
Department of Health,NHS Sheffield CCG,31/07/2019,C&M-GMS PCN DES PCN support,LOCAL ENHANCED SERVICES,PRIMARY CARE SHEFFIELD LTD,28064985,"24,824.50"
Department of Health,NHS Sheffield CCG,31/07/2019,C&M-GMS DES Extended Hours Access,PRC DELEGATED CO-COMMISSIONING,PRIMARY CARE SHEFFIELD LTD,28065062,"5,097.65"
Department of Health,NHS Sheffield CCG,31/07/2019,C&M-GMS PCN DES Clinical Director,PRC DELEGATED CO-COMMISSIONING,PRIMARY CARE SHEFFIELD LTD,28065062,"2,384.16"
Department of Health,NHS Sheffield CCG,31/07/2019,C&M-GMS PCN DES PCN support,LOCAL ENHANCED SERVICES,PRIMARY CARE SHEFFIELD LTD,28065062,"20,873.00"
Department of Health,NHS Sheffield CCG,31/07/2019,C&M-GMS DES Extended Hours Access,PRC DELEGATED CO-COMMISSIONING,PRIMARY CARE SHEFFIELD LTD,28065068,"4,573.92"
Department of Health,NHS Sheffield CCG,31/07/2019,C&M-GMS PCN DES Clinical Director,PRC DELEGATED CO-COMMISSIONING,PRIMARY CARE SHEFFIELD LTD,28065068,"2,139.21"
Department of Health,NHS Sheffield CCG,31/07/2019,C&M-GMS PCN DES PCN support,LOCAL ENHANCED SERVICES,PRIMARY CARE SHEFFIELD LTD,28065068,"18,728.50"
Department of Health,NHS Sheffield CCG,31/07/2019,C&M-GMS DES Extended Hours Access,PRC DELEGATED CO-COMMISSIONING,PRIMARY CARE SHEFFIELD LTD,28065086,"5,322.83"
Department of Health,NHS Sheffield CCG,31/07/2019,C&M-GMS PCN DES Clinical Director,PRC DELEGATED CO-COMMISSIONING,PRIMARY CARE SHEFFIELD LTD,28065086,"2,489.47"
Department of Health,NHS Sheffield CCG,31/07/2019,C&M-GMS PCN DES PCN support,LOCAL ENHANCED SERVICES,PRIMARY CARE SHEFFIELD LTD,28065086,"21,795.00"
Department of Health,NHS Sheffield CCG,31/07/2019,C&M-GMS DES Extended Hours Access,PRC DELEGATED CO-COMMISSIONING,PRIMARY CARE SHEFFIELD LTD,28065097,"5,272.52"
Department of Health,NHS Sheffield CCG,31/07/2019,C&M-GMS PCN DES Clinical Director,PRC DELEGATED CO-COMMISSIONING,PRIMARY CARE SHEFFIELD LTD,28065097,"2,465.94"
Department of Health,NHS Sheffield CCG,31/07/2019,C&M-GMS PCN DES PCN support,LOCAL ENHANCED SERVICES,PRIMARY CARE SHEFFIELD LTD,28065097,"21,589.00"
Department of Health,NHS Sheffield CCG,31/07/2019,C&M-GMS DES Extended Hours Access,PRC DELEGATED CO-COMMISSIONING,PRIMARY CARE SHEFFIELD LTD,28065108,"4,804.22"
Department of Health,NHS Sheffield CCG,31/07/2019,C&M-GMS PCN DES Clinical Director,PRC DELEGATED CO-COMMISSIONING,PRIMARY CARE SHEFFIELD LTD,28065108,"2,246.92"
Department of Health,NHS Sheffield CCG,31/07/2019,C&M-GMS PCN DES PCN support,LOCAL ENHANCED SERVICES,PRIMARY CARE SHEFFIELD LTD,28065108,"19,671.50"
Department of Health,NHS Sheffield CCG,31/07/2019,C&M-GMS DES Extended Hours Access,PRC DELEGATED CO-COMMISSIONING,PRIMARY CARE SHEFFIELD LTD,28065112,"4,548.15"
Department of Health,NHS Sheffield CCG,31/07/2019,C&M-GMS PCN DES Clinical Director,PRC DELEGATED CO-COMMISSIONING,PRIMARY CARE SHEFFIELD LTD,28065112,"2,127.16"
Department of Health,NHS Sheffield CCG,31/07/2019,C&M-GMS PCN DES PCN support,LOCAL ENHANCED SERVICES,PRIMARY CARE SHEFFIELD LTD,28065112,"18,623.00"
Department of Health,NHS Sheffield CCG,31/07/2019,C&M-OES Childrens Schemes,LOCAL ENHANCED SERVICES,PRIMARY EYECARE SERVICES LTD,28123293,"1,275.00"
Department of Health,NHS Sheffield CCG,31/07/2019,C&M-OES Glaucoma,LOCAL ENHANCED SERVICES,PRIMARY EYECARE SERVICES LTD,28123293,"1,015.00"
Department of Health,NHS Sheffield CCG,31/07/2019,C&M-OES Intra-ocular Ocular Hypertn,LOCAL ENHANCED SERVICES,PRIMARY EYECARE SERVICES LTD,28123293,620
Department of Health,NHS Sheffield CCG,31/07/2019,C&M-OES PEARS,LOCAL ENHANCED SERVICES,PRIMARY EYECARE SERVICES LTD,28123293,"27,176.50"
Department of Health,NHS Sheffield CCG,31/07/2019,Cont Care-Physical Disab (<65),CHC ADULT FULLY FUNDED,PRIORY GROUP LTD,28087921,"28,308.36"
Department of Health,NHS Sheffield CCG,31/07/2019,C&M-PMS Contract Value,PRC DELEGATED CO-COMMISSIONING,RICHMOND MEDICAL CENTRE,28017389,"66,670.76"
Department of Health,NHS Sheffield CCG,31/07/2019,C&M-PMS PCN DES Participation,PRC DELEGATED CO-COMMISSIONING,RICHMOND MEDICAL CENTRE,28017389,"3,815.09"
Department of Health,NHS Sheffield CCG,31/07/2019,C&M-PMS PCO Other,PRC DELEGATED CO-COMMISSIONING,RICHMOND MEDICAL CENTRE,28017389,561.5
Department of Health,NHS Sheffield CCG,31/07/2019,C&M-PMS Prem Notional Rent,PRC DELEGATED CO-COMMISSIONING,RICHMOND MEDICAL CENTRE,28017389,"4,731.00"
Department of Health,NHS Sheffield CCG,31/07/2019,C&M-PMS Prem Rates,PRC DELEGATED CO-COMMISSIONING,RICHMOND MEDICAL CENTRE,28017389,"1,259.00"
Department of Health,NHS Sheffield CCG,31/07/2019,C&M-PMS QOF Aspiration,PRC DELEGATED CO-COMMISSIONING,RICHMOND MEDICAL CENTRE,28017389,"8,208.20"
Department of Health,NHS Sheffield CCG,31/07/2019,Cont Care-Physical Disab (<65),CHC ADULT FULLY FUNDED,ROSEBERRY CARE CENTRES,28087671,"35,922.02"
Department of Health,NHS Sheffield CCG,31/07/2019,Cont Care-Funded Nursing Care Allow,FUNDED NURSING CARE,ROSEBERRY CARE CENTRES,28087758,"32,976.94"
Department of Health,NHS Sheffield CCG,31/07/2019,Cont Care-Funded Nursing Care Allow,FUNDED NURSING CARE,ROSEBERRY CARE CENTRES,28087796,"25,628.90"
Department of Health,NHS Sheffield CCG,31/07/2019,Cont Care-Physical Disab (<65),CHC ADULT FULLY FUNDED,ROSEBERRY CARE CENTRES,28087927,"39,628.27"
Department of Health,NHS Sheffield CCG,31/07/2019,Hcare Srv Rec Fdtn Trust-Contract Baseline,MENTAL HEALTH CONTRACTS,ROTHERHAM DONCASTER AND SOUTH HUMBER NHS FOUNDATION TRUST,28106050,"25,487.95"
Department of Health,NHS Sheffield CCG,31/07/2019,Hcare Srv Rec Fdtn Trust-Contract Baseline,ACUTE COMMISSIONING,ROTHERHAM NHS FOUNDATION TRUST,27982106,"466,729.00"
Department of Health,NHS Sheffield CCG,31/07/2019,C&M-PMS Contract Value,PRC DELEGATED CO-COMMISSIONING,RUSTLINGS ROAD MEDICAL CENTRE,28017393,"27,925.61"
Department of Health,NHS Sheffield CCG,31/07/2019,C&M-PMS PCN DES Participation,PRC DELEGATED CO-COMMISSIONING,RUSTLINGS ROAD MEDICAL CENTRE,28017393,"1,582.86"
Department of Health,NHS Sheffield CCG,31/07/2019,C&M-PMS PCO Other,PRC DELEGATED CO-COMMISSIONING,RUSTLINGS ROAD MEDICAL CENTRE,28017393,313.8
Department of Health,NHS Sheffield CCG,31/07/2019,C&M-PMS Prem Notional Rent,PRC DELEGATED CO-COMMISSIONING,RUSTLINGS ROAD MEDICAL CENTRE,28017393,"1,312.50"
Department of Health,NHS Sheffield CCG,31/07/2019,C&M-PMS Prem Water Rates,PRC DELEGATED CO-COMMISSIONING,RUSTLINGS ROAD MEDICAL CENTRE,28017393,77.82
Department of Health,NHS Sheffield CCG,31/07/2019,C&M-PMS QOF Aspiration,PRC DELEGATED CO-COMMISSIONING,RUSTLINGS ROAD MEDICAL CENTRE,28017393,"2,653.37"
Department of Health,NHS Sheffield CCG,31/07/2019,Cont Care-Funded Nursing Care Allow,FUNDED NURSING CARE,SCARSDALE GRANGE NURSING HOME,28087745,"26,882.41"
Department of Health,NHS Sheffield CCG,31/07/2019,C&M-PMS Contract Value,PRC DELEGATED CO-COMMISSIONING,SELBORNE ROAD MEDICAL CENTRE,28017391,"19,556.13"
Department of Health,NHS Sheffield CCG,31/07/2019,C&M-PMS Out of Hours Opt Outs,PRC DELEGATED CO-COMMISSIONING,SELBORNE ROAD MEDICAL CENTRE,28017391,13.14
Department of Health,NHS Sheffield CCG,31/07/2019,C&M-PMS PCN DES Participation,PRC DELEGATED CO-COMMISSIONING,SELBORNE ROAD MEDICAL CENTRE,28017391,"1,109.59"
Department of Health,NHS Sheffield CCG,31/07/2019,C&M-PMS PCO Other,PRC DELEGATED CO-COMMISSIONING,SELBORNE ROAD MEDICAL CENTRE,28017391,822.4
Department of Health,NHS Sheffield CCG,31/07/2019,C&M-PMS Prem Notional Rent,PRC DELEGATED CO-COMMISSIONING,SELBORNE ROAD MEDICAL CENTRE,28017391,"1,735.42"
Department of Health,NHS Sheffield CCG,31/07/2019,C&M-PMS Prem Rates,PRC DELEGATED CO-COMMISSIONING,SELBORNE ROAD MEDICAL CENTRE,28017391,"2,408.75"
Department of Health,NHS Sheffield CCG,31/07/2019,C&M-PMS Prem Water Rates,PRC DELEGATED CO-COMMISSIONING,SELBORNE ROAD MEDICAL CENTRE,28017391,221.94
Department of Health,NHS Sheffield CCG,31/07/2019,C&M-PMS QOF Aspiration,PRC DELEGATED CO-COMMISSIONING,SELBORNE ROAD MEDICAL CENTRE,28017391,"1,995.11"
Department of Health,NHS Sheffield CCG,31/07/2019,Cont Care-Physical Disab (<65),CHC ADULT FULLY FUNDED,SEVEN HILLS NURSING HOME,28087905,"25,931.91"
Department of Health,NHS Sheffield CCG,31/07/2019,C&M-GMS Cost of Drugs -Prescribing,LOCAL ENHANCED SERVICES,SHARROW LANE MEDICAL CENTRE,28251935,115.44
Department of Health,NHS Sheffield CCG,31/07/2019,C&M-GMS Global Sum,PRC DELEGATED CO-COMMISSIONING,SHARROW LANE MEDICAL CENTRE,28251935,"23,533.97"
Department of Health,NHS Sheffield CCG,31/07/2019,C&M-GMS MPIG Correction Factor,PRC DELEGATED CO-COMMISSIONING,SHARROW LANE MEDICAL CENTRE,28251935,980.16
Department of Health,NHS Sheffield CCG,31/07/2019,C&M-GMS PCN DES Participation,PRC DELEGATED CO-COMMISSIONING,SHARROW LANE MEDICAL CENTRE,28251935,"1,444.18"
Department of Health,NHS Sheffield CCG,31/07/2019,C&M-GMS PCO Other,PRC DELEGATED CO-COMMISSIONING,SHARROW LANE MEDICAL CENTRE,28251935,274
Department of Health,NHS Sheffield CCG,31/07/2019,C&M-GMS Prem Notional Rent,PRC DELEGATED CO-COMMISSIONING,SHARROW LANE MEDICAL CENTRE,28251935,"2,741.67"
Department of Health,NHS Sheffield CCG,31/07/2019,C&M-GMS Prem Rates,PRC DELEGATED CO-COMMISSIONING,SHARROW LANE MEDICAL CENTRE,28251935,581
Department of Health,NHS Sheffield CCG,31/07/2019,C&M-GMS Prof Fees Prescribing,PRC DELEGATED CO-COMMISSIONING,SHARROW LANE MEDICAL CENTRE,28251935,33.67
Department of Health,NHS Sheffield CCG,31/07/2019,C&M-GMS QOF Aspiration,PRC DELEGATED CO-COMMISSIONING,SHARROW LANE MEDICAL CENTRE,28251935,"2,666.85"
Department of Health,NHS Sheffield CCG,31/07/2019,Hcare Srv Rec Fdtn Trust-Contract Baseline,ACUTE CHILDRENS SERVICES,SHEFFIELD CHILDRENS NHS FOUNDATION TRUST,27982093,"300,406.80"
Department of Health,NHS Sheffield CCG,31/07/2019,Hcare Srv Rec Fdtn Trust-Contract Baseline,ACUTE CHILDRENS SERVICES,SHEFFIELD CHILDRENS NHS FOUNDATION TRUST,28225943,"4,256,850.63"
Department of Health,NHS Sheffield CCG,31/07/2019,Hcare Srv Rec Fdtn Trust-Contract Baseline,ACUTE CHILDRENS SERVICES,SHEFFIELD CHILDRENS NHS FOUNDATION TRUST,28226037,"-976,982.00"
Department of Health,NHS Sheffield CCG,31/07/2019,Cont Care- Prior Year Payments,CHC ADULT FULLY FUNDED,SHEFFIELD CITY COUNCIL,28157838,"38,907.12"
Department of Health,NHS Sheffield CCG,31/07/2019,Clinical&Medical-Othe Public Sector,COMMUNITY SERVICES,SHEFFIELD CITY COUNCIL,28225948,"150,417.00"
Department of Health,NHS Sheffield CCG,31/07/2019,Clinical&Medical-Othe Public Sector,MENTAL HEALTH SERVICES - COLLABORATIVE COMMISSIONING,SHEFFIELD CITY COUNCIL,28225948,"83,669.00"
Department of Health,NHS Sheffield CCG,31/07/2019,Clinical&Medical-Othe Public Sector,REABLEMENT,SHEFFIELD CITY COUNCIL,28225948,"21,831.00"
Department of Health,NHS Sheffield CCG,31/07/2019,Clinical&Medical-Othe Public Sector,SAFEGUARDING,SHEFFIELD CITY COUNCIL,28225948,"12,235.00"
Department of Health,NHS Sheffield CCG,31/07/2019,Cont Care-Physical Disab (65+),CHC ADULT FULLY FUNDED,SHEFFIELD CITY COUNCIL,28225948,"14,165.42"
Department of Health,NHS Sheffield CCG,31/07/2019,Soc Care-Joint H&C Teams/Working,INTERMEDIATE CARE,SHEFFIELD CITY COUNCIL,28225948,"151,448.00"
Department of Health,NHS Sheffield CCG,31/07/2019,Soc Care-Other Soc Care,COMMISSIONING - NON ACUTE,SHEFFIELD CITY COUNCIL,28225948,"1,467,750.00"
Department of Health,NHS Sheffield CCG,31/07/2019,Soc Care-Support Prim Care,COMMUNITY SERVICES,SHEFFIELD CITY COUNCIL,28225948,"59,500.00"
Department of Health,NHS Sheffield CCG,31/07/2019,Cont Care-Physical Disab (65+),CHC ADULT FULLY FUNDED,SHEFFIELD CITY COUNCIL,28225960,"862,839.83"
Department of Health,NHS Sheffield CCG,31/07/2019,Cont Care- Children,CHC CHILDREN,SHEFFIELD CITY COUNCIL,28225968,"52,921.55"
Department of Health,NHS Sheffield CCG,31/07/2019,Hcare Srv Rec Fdtn Trust-Contract Baseline,MENTAL HEALTH CONTRACTS,SHEFFIELD HEALTH & SOCIAL CARE NHS FOUNDATION TRUST,28123159,"512,516.00"
Department of Health,NHS Sheffield CCG,31/07/2019,Hcare Srv Rec Fdtn Trust-Contract Baseline,MENTAL HEALTH CONTRACTS,SHEFFIELD HEALTH & SOCIAL CARE NHS FOUNDATION TRUST,28256469,"6,833,545.75"
Department of Health,NHS Sheffield CCG,31/07/2019,Clinical&Medical-Serv Recd-F Trsts,CLINICAL LEADS,SHEFFIELD TEACHING HOSPITALS NHS FOUNDATION TRUST,27991162,"27,458.00"
Department of Health,NHS Sheffield CCG,31/07/2019,Hcare Srv Rec Fdtn Trust-Non Contract,ACUTE COMMISSIONING,SHEFFIELD TEACHING HOSPITALS NHS FOUNDATION TRUST,28062971,"43,604.15"
Department of Health,NHS Sheffield CCG,31/07/2019,Hcare Srv Rec Fdtn Trust-Contract Baseline,ACUTE COMMISSIONING,SHEFFIELD TEACHING HOSPITALS NHS FOUNDATION TRUST,28226003,"30,408,062.00"
Department of Health,NHS Sheffield CCG,31/07/2019,Hcare Srv Rec Fdtn Trust-Contract Baseline,ACUTE COMMISSIONING,SHEFFIELD TEACHING HOSPITALS NHS FOUNDATION TRUST,28226009,"1,367,221.00"
Department of Health,NHS Sheffield CCG,31/07/2019,Hcare Srv Rec Fdtn Trust-Contract Baseline,ACUTE COMMISSIONING,SHEFFIELD TEACHING HOSPITALS NHS FOUNDATION TRUST,28226012,"192,714.00"
Department of Health,NHS Sheffield CCG,31/07/2019,Hcare Srv Rec Fdtn Trust-Contract Baseline,ACUTE COMMISSIONING,SHEFFIELD TEACHING HOSPITALS NHS FOUNDATION TRUST,28226019,"3,898,718.00"
Department of Health,NHS Sheffield CCG,31/07/2019,Hcare Srv Rec Fdtn Trust-Non Contract,ACUTE COMMISSIONING,SHEFFIELD TEACHING HOSPITALS NHS FOUNDATION TRUST,28256599,"-51,672.15"
Department of Health,NHS Sheffield CCG,31/07/2019,Hcare Srv Rec Fdtn Trust-Non Contract,ACUTE COMMISSIONING,SHEFFIELD TEACHING HOSPITALS NHS FOUNDATION TRUST,28256606,"51,672.15"
Department of Health,NHS Sheffield CCG,31/07/2019,C&M-GMS Cost of Drugs -Prescribing,LOCAL ENHANCED SERVICES,SHIREGREEN MEDICAL CENTRE,28251942,"1,232.59"
Department of Health,NHS Sheffield CCG,31/07/2019,C&M-GMS Global Sum,PRC DELEGATED CO-COMMISSIONING,SHIREGREEN MEDICAL CENTRE,28251942,"58,653.83"
Department of Health,NHS Sheffield CCG,31/07/2019,C&M-GMS MPIG Correction Factor,PRC DELEGATED CO-COMMISSIONING,SHIREGREEN MEDICAL CENTRE,28251942,226.84
Department of Health,NHS Sheffield CCG,31/07/2019,C&M-GMS PCN DES Participation,PRC DELEGATED CO-COMMISSIONING,SHIREGREEN MEDICAL CENTRE,28251942,"3,653.34"
Department of Health,NHS Sheffield CCG,31/07/2019,C&M-GMS Prem Cost Rent,PRC DELEGATED CO-COMMISSIONING,SHIREGREEN MEDICAL CENTRE,28251942,"1,792.33"
Department of Health,NHS Sheffield CCG,31/07/2019,C&M-GMS Prem Notional Rent,PRC DELEGATED CO-COMMISSIONING,SHIREGREEN MEDICAL CENTRE,28251942,"5,375.00"
Department of Health,NHS Sheffield CCG,31/07/2019,C&M-GMS Prem Rates,PRC DELEGATED CO-COMMISSIONING,SHIREGREEN MEDICAL CENTRE,28251942,"1,922.00"
Department of Health,NHS Sheffield CCG,31/07/2019,C&M-GMS Prof Fees Prescribing,PRC DELEGATED CO-COMMISSIONING,SHIREGREEN MEDICAL CENTRE,28251942,141.91
Department of Health,NHS Sheffield CCG,31/07/2019,C&M-GMS QOF Aspiration,PRC DELEGATED CO-COMMISSIONING,SHIREGREEN MEDICAL CENTRE,28251942,"6,849.89"
Department of Health,NHS Sheffield CCG,31/07/2019,C&M-PMS Contract Value,PRC DELEGATED CO-COMMISSIONING,SLOAN MEDICAL CENTRE,28017395,"95,191.04"
Department of Health,NHS Sheffield CCG,31/07/2019,C&M-PMS PCN DES Participation,PRC DELEGATED CO-COMMISSIONING,SLOAN MEDICAL CENTRE,28017395,"5,429.92"
Department of Health,NHS Sheffield CCG,31/07/2019,C&M-PMS PCO Other,PRC DELEGATED CO-COMMISSIONING,SLOAN MEDICAL CENTRE,28017395,802.9
Department of Health,NHS Sheffield CCG,31/07/2019,C&M-PMS Prem Actual Rent,PRC DELEGATED CO-COMMISSIONING,SLOAN MEDICAL CENTRE,28017395,"15,535.83"
Department of Health,NHS Sheffield CCG,31/07/2019,C&M-PMS Prem Notional Rent,PRC DELEGATED CO-COMMISSIONING,SLOAN MEDICAL CENTRE,28017395,608.33
Department of Health,NHS Sheffield CCG,31/07/2019,C&M-PMS Prem Rates,PRC DELEGATED CO-COMMISSIONING,SLOAN MEDICAL CENTRE,28017395,"3,423.00"
Department of Health,NHS Sheffield CCG,31/07/2019,C&M-PMS QOF Aspiration,PRC DELEGATED CO-COMMISSIONING,SLOAN MEDICAL CENTRE,28017395,"10,003.70"
Department of Health,NHS Sheffield CCG,31/07/2019,C&M-PMS Contract Value,PRC DELEGATED CO-COMMISSIONING,SOTHALL MEDICAL CENTRE,28017397,"71,170.89"
Department of Health,NHS Sheffield CCG,31/07/2019,C&M-PMS PCN DES Participation,PRC DELEGATED CO-COMMISSIONING,SOTHALL MEDICAL CENTRE,28017397,"4,055.73"
Department of Health,NHS Sheffield CCG,31/07/2019,C&M-PMS PCO Other,PRC DELEGATED CO-COMMISSIONING,SOTHALL MEDICAL CENTRE,28017397,627.6
Department of Health,NHS Sheffield CCG,31/07/2019,C&M-PMS Prem Notional Rent,PRC DELEGATED CO-COMMISSIONING,SOTHALL MEDICAL CENTRE,28017397,"5,116.67"
Department of Health,NHS Sheffield CCG,31/07/2019,C&M-PMS Prem Rates,PRC DELEGATED CO-COMMISSIONING,SOTHALL MEDICAL CENTRE,28017397,"1,412.00"
Department of Health,NHS Sheffield CCG,31/07/2019,C&M-PMS Prem Water Rates,PRC DELEGATED CO-COMMISSIONING,SOTHALL MEDICAL CENTRE,28017397,203.03
Department of Health,NHS Sheffield CCG,31/07/2019,C&M-PMS QOF Aspiration,PRC DELEGATED CO-COMMISSIONING,SOTHALL MEDICAL CENTRE,28017397,"8,630.52"
Department of Health,NHS Sheffield CCG,31/07/2019,Cont Care- Adult 100% Fully Funded,CHC ADULT FULLY FUNDED,SOUTH YORKSHIRE HOUSING ASSOCIATION LTD,27999944,"25,500.00"
Department of Health,NHS Sheffield CCG,31/07/2019,Clinical&Medical-Independent Sector,MENTAL HEALTH CONTRACTS,SOUTH YORKSHIRE HOUSING ASSOCIATION LTD,28024408,"34,435.00"
Department of Health,NHS Sheffield CCG,31/07/2019,Cont Care- Adult 100% Fully Funded,CHC ADULT FULLY FUNDED,SOUTH YORKSHIRE HOUSING ASSOCIATION LTD,28051180,"46,763.59"
Department of Health,NHS Sheffield CCG,31/07/2019,Clinical&Medical-Voluntary Sector,COLLABORATIVE COMMISSIONING,SOUTH YORKSHIRE HOUSING ASSOCIATION LTD,28123103,"121,105.00"
Department of Health,NHS Sheffield CCG,31/07/2019,Clinical&Medical-Voluntary Sector,COLLABORATIVE COMMISSIONING,SOUTH YORKSHIRE HOUSING ASSOCIATION LTD,28123135,"43,150.00"
Department of Health,NHS Sheffield CCG,31/07/2019,Clinical&Medical-Voluntary Sector,COLLABORATIVE COMMISSIONING,SOUTH YORKSHIRE HOUSING ASSOCIATION LTD,28123139,"47,700.00"
Department of Health,NHS Sheffield CCG,31/07/2019,Clinical&Medical-Voluntary Sector,COLLABORATIVE COMMISSIONING,SOUTH YORKSHIRE HOUSING ASSOCIATION LTD,28123143,"78,830.00"
Department of Health,NHS Sheffield CCG,31/07/2019,Cont Care-Physical Disab (<65),CHC ADULT FULLY FUNDED,SOUTH YORKSHIRE HOUSING ASSOCIATION LTD,28123199,"123,999.52"
Department of Health,NHS Sheffield CCG,31/07/2019,C&M-PMS Contract Value,PRC DELEGATED CO-COMMISSIONING,SOUTHEY GREEN MEDICAL CENTRE,28017399,"25,142.94"
Department of Health,NHS Sheffield CCG,31/07/2019,C&M-PMS Out of Hours Opt Outs,PRC DELEGATED CO-COMMISSIONING,SOUTHEY GREEN MEDICAL CENTRE,28017399,8.62
Department of Health,NHS Sheffield CCG,31/07/2019,C&M-PMS PCN DES Participation,PRC DELEGATED CO-COMMISSIONING,SOUTHEY GREEN MEDICAL CENTRE,28017399,"1,427.03"
Department of Health,NHS Sheffield CCG,31/07/2019,C&M-PMS Prem Notional Rent,PRC DELEGATED CO-COMMISSIONING,SOUTHEY GREEN MEDICAL CENTRE,28017399,"3,362.50"
Department of Health,NHS Sheffield CCG,31/07/2019,C&M-PMS QOF Aspiration,PRC DELEGATED CO-COMMISSIONING,SOUTHEY GREEN MEDICAL CENTRE,28017399,"2,668.69"
Department of Health,NHS Sheffield CCG,31/07/2019,Clinical&Medical-Independent Sector,NCAS/OATS,SPAMEDICA LTD,28226027,"112,417.33"
Department of Health,NHS Sheffield CCG,31/07/2019,C&M-GMS Global Sum,PRC DELEGATED CO-COMMISSIONING,STANNINGTON MEDICAL CENTRE,28251946,"25,840.04"
Department of Health,NHS Sheffield CCG,31/07/2019,C&M-GMS PCO Other,PRC DELEGATED CO-COMMISSIONING,STANNINGTON MEDICAL CENTRE,28251946,950.8
Department of Health,NHS Sheffield CCG,31/07/2019,C&M-GMS Prem Notional Rent,PRC DELEGATED CO-COMMISSIONING,STANNINGTON MEDICAL CENTRE,28251946,"2,575.00"
Department of Health,NHS Sheffield CCG,31/07/2019,C&M-GMS Prem Rates,PRC DELEGATED CO-COMMISSIONING,STANNINGTON MEDICAL CENTRE,28251946,665.7
Department of Health,NHS Sheffield CCG,31/07/2019,C&M-GMS Prem Water Rates,PRC DELEGATED CO-COMMISSIONING,STANNINGTON MEDICAL CENTRE,28251946,170.91
Department of Health,NHS Sheffield CCG,31/07/2019,C&M-GMS QOF Aspiration,PRC DELEGATED CO-COMMISSIONING,STANNINGTON MEDICAL CENTRE,28251946,"2,881.70"
Department of Health,NHS Sheffield CCG,31/07/2019,C&M-GMS Cost of Drugs -Prescribing,LOCAL ENHANCED SERVICES,STONECROFT MEDICAL CENTRE,28251944,462.12
Department of Health,NHS Sheffield CCG,31/07/2019,C&M-GMS Global Sum,PRC DELEGATED CO-COMMISSIONING,STONECROFT MEDICAL CENTRE,28251944,"32,399.15"
Department of Health,NHS Sheffield CCG,31/07/2019,C&M-GMS MPIG Correction Factor,PRC DELEGATED CO-COMMISSIONING,STONECROFT MEDICAL CENTRE,28251944,309.13
Department of Health,NHS Sheffield CCG,31/07/2019,C&M-GMS PCN DES Participation,PRC DELEGATED CO-COMMISSIONING,STONECROFT MEDICAL CENTRE,28251944,"1,972.66"
Department of Health,NHS Sheffield CCG,31/07/2019,C&M-GMS PCO Other,PRC DELEGATED CO-COMMISSIONING,STONECROFT MEDICAL CENTRE,28251944,284.7
Department of Health,NHS Sheffield CCG,31/07/2019,C&M-GMS Prem Notional Rent,PRC DELEGATED CO-COMMISSIONING,STONECROFT MEDICAL CENTRE,28251944,"2,808.33"
Department of Health,NHS Sheffield CCG,31/07/2019,C&M-GMS Prem Rates,PRC DELEGATED CO-COMMISSIONING,STONECROFT MEDICAL CENTRE,28251944,"1,215.00"
Department of Health,NHS Sheffield CCG,31/07/2019,C&M-GMS Prof Fees Prescribing,PRC DELEGATED CO-COMMISSIONING,STONECROFT MEDICAL CENTRE,28251944,91.4
Department of Health,NHS Sheffield CCG,31/07/2019,C&M-GMS QOF Aspiration,PRC DELEGATED CO-COMMISSIONING,STONECROFT MEDICAL CENTRE,28251944,"4,228.40"
Department of Health,NHS Sheffield CCG,31/07/2019,Clinical&Medical-Independent Sector,MENTAL HEALTH CONTRACTS,SUSASH GB LTD T/A EAGLE HOUSE,28024389,"30,092.00"
Department of Health,NHS Sheffield CCG,31/07/2019,Cont Care-Physical Disab (<65),CHC ADULT FULLY FUNDED,SUSASH GB LTD T/A EAGLE HOUSE,28087836,"27,527.77"
Department of Health,NHS Sheffield CCG,31/07/2019,C&M-GMS Cost of Drugs -Prescribing,LOCAL ENHANCED SERVICES,TOTLEY RISE MEDICAL CENTRE,28251948,383.66
Department of Health,NHS Sheffield CCG,31/07/2019,C&M-GMS Global Sum,PRC DELEGATED CO-COMMISSIONING,TOTLEY RISE MEDICAL CENTRE,28251948,"25,128.99"
Department of Health,NHS Sheffield CCG,31/07/2019,C&M-GMS MPIG Correction Factor,PRC DELEGATED CO-COMMISSIONING,TOTLEY RISE MEDICAL CENTRE,28251948,51.57
Department of Health,NHS Sheffield CCG,31/07/2019,C&M-GMS PCN DES Participation,PRC DELEGATED CO-COMMISSIONING,TOTLEY RISE MEDICAL CENTRE,28251948,"1,513.04"
Department of Health,NHS Sheffield CCG,31/07/2019,C&M-GMS Prem Notional Rent,PRC DELEGATED CO-COMMISSIONING,TOTLEY RISE MEDICAL CENTRE,28251948,"3,291.67"
Department of Health,NHS Sheffield CCG,31/07/2019,C&M-GMS Prof Fees Prescribing,PRC DELEGATED CO-COMMISSIONING,TOTLEY RISE MEDICAL CENTRE,28251948,79.37
Department of Health,NHS Sheffield CCG,31/07/2019,C&M-GMS QOF Aspiration,PRC DELEGATED CO-COMMISSIONING,TOTLEY RISE MEDICAL CENTRE,28251948,"2,304.18"
Department of Health,NHS Sheffield CCG,31/07/2019,C&M-GMS Cost of Drugs -Prescribing,LOCAL ENHANCED SERVICES,TRAMWAYS MEDICAL CENTRE,28251950,"1,222.37"
Department of Health,NHS Sheffield CCG,31/07/2019,C&M-GMS Global Sum,PRC DELEGATED CO-COMMISSIONING,TRAMWAYS MEDICAL CENTRE,28251950,"61,216.66"
Department of Health,NHS Sheffield CCG,31/07/2019,C&M-GMS PCN DES Participation,PRC DELEGATED CO-COMMISSIONING,TRAMWAYS MEDICAL CENTRE,28251950,"3,791.82"
Department of Health,NHS Sheffield CCG,31/07/2019,C&M-GMS PCO Other,PRC DELEGATED CO-COMMISSIONING,TRAMWAYS MEDICAL CENTRE,28251950,534.6
Department of Health,NHS Sheffield CCG,31/07/2019,C&M-GMS Prem Cost Rent,PRC DELEGATED CO-COMMISSIONING,TRAMWAYS MEDICAL CENTRE,28251950,"4,012.75"
Department of Health,NHS Sheffield CCG,31/07/2019,C&M-GMS Prem Rates,PRC DELEGATED CO-COMMISSIONING,TRAMWAYS MEDICAL CENTRE,28251950,"1,098.00"
Department of Health,NHS Sheffield CCG,31/07/2019,C&M-GMS Prem Water Rates,PRC DELEGATED CO-COMMISSIONING,TRAMWAYS MEDICAL CENTRE,28251950,328.12
Department of Health,NHS Sheffield CCG,31/07/2019,C&M-GMS Prof Fees Prescribing,PRC DELEGATED CO-COMMISSIONING,TRAMWAYS MEDICAL CENTRE,28251950,153.94
Department of Health,NHS Sheffield CCG,31/07/2019,C&M-GMS QOF Aspiration,PRC DELEGATED CO-COMMISSIONING,TRAMWAYS MEDICAL CENTRE,28251950,"5,645.42"
Department of Health,NHS Sheffield CCG,31/07/2019,Hcare Srv Rec NHS Trust-Contract Baseline,ACUTE COMMISSIONING,UNITED LINCOLNSHIRE HOSPITALS NHS TRUST,28062752,"26,180.60"
Department of Health,NHS Sheffield CCG,31/07/2019,C&M-PMS Contract Value,PRC DELEGATED CO-COMMISSIONING,UNIVERSITY HEALTH SERVICE,28017403,"179,785.50"
Department of Health,NHS Sheffield CCG,31/07/2019,C&M-PMS Out of Hours Opt Outs,PRC DELEGATED CO-COMMISSIONING,UNIVERSITY HEALTH SERVICE,28017403,283.8
Department of Health,NHS Sheffield CCG,31/07/2019,C&M-PMS PCN DES Participation,PRC DELEGATED CO-COMMISSIONING,UNIVERSITY HEALTH SERVICE,28017403,"10,606.57"
Department of Health,NHS Sheffield CCG,31/07/2019,C&M-PMS Prem Notional Rent,PRC DELEGATED CO-COMMISSIONING,UNIVERSITY HEALTH SERVICE,28017403,"15,833.33"
Department of Health,NHS Sheffield CCG,31/07/2019,C&M-PMS QOF Aspiration,PRC DELEGATED CO-COMMISSIONING,UNIVERSITY HEALTH SERVICE,28017403,"4,031.41"
Department of Health,NHS Sheffield CCG,31/07/2019,C&M-GMS LES Equitable Funding,LOCAL ENHANCED SERVICES,UNIVERSITY HEALTH SERVICE,28204134,"29,132.00"
Department of Health,NHS Sheffield CCG,31/07/2019,Hcare Srv Rec NHS Trust-Non Contract,NCAS/OATS,UNIVERSITY HOSPITALS PLYMOUTH NHS TRUST,28256527,"37,043.21"
Department of Health,NHS Sheffield CCG,31/07/2019,Hcare Srv Rec NHS Trust-Non Contract,NCAS/OATS,UNIVERSITY HOSPITALS PLYMOUTH NHS TRUST,28256556,"-37,043.21"
Department of Health,NHS Sheffield CCG,31/07/2019,Other Research Exp,Nursing and Quality Programme,UNIVERSITY OF SHEFFIELD,27982089,"65,277.42"
Department of Health,NHS Sheffield CCG,31/07/2019,C&M-GMS Cost of Drugs -Prescribing,LOCAL ENHANCED SERVICES,UPPERTHORPE MEDICAL CENTRE,28251953,"3,777.43"
Department of Health,NHS Sheffield CCG,31/07/2019,C&M-GMS Global Sum,PRC DELEGATED CO-COMMISSIONING,UPPERTHORPE MEDICAL CENTRE,28251953,"83,141.65"
Department of Health,NHS Sheffield CCG,31/07/2019,C&M-GMS MPIG Correction Factor,PRC DELEGATED CO-COMMISSIONING,UPPERTHORPE MEDICAL CENTRE,28251953,662.87
Department of Health,NHS Sheffield CCG,31/07/2019,C&M-GMS PCN DES Participation,PRC DELEGATED CO-COMMISSIONING,UPPERTHORPE MEDICAL CENTRE,28251953,"5,045.86"
Department of Health,NHS Sheffield CCG,31/07/2019,C&M-GMS Prem Notional Rent,PRC DELEGATED CO-COMMISSIONING,UPPERTHORPE MEDICAL CENTRE,28251953,"2,497.83"
Department of Health,NHS Sheffield CCG,31/07/2019,C&M-GMS Prem Rates,PRC DELEGATED CO-COMMISSIONING,UPPERTHORPE MEDICAL CENTRE,28251953,"2,318.00"
Department of Health,NHS Sheffield CCG,31/07/2019,C&M-GMS Prem Water Rates,PRC DELEGATED CO-COMMISSIONING,UPPERTHORPE MEDICAL CENTRE,28251953,339.8
Department of Health,NHS Sheffield CCG,31/07/2019,C&M-GMS Prof Fees Prescribing,PRC DELEGATED CO-COMMISSIONING,UPPERTHORPE MEDICAL CENTRE,28251953,307.86
Department of Health,NHS Sheffield CCG,31/07/2019,C&M-GMS QOF Aspiration,PRC DELEGATED CO-COMMISSIONING,UPPERTHORPE MEDICAL CENTRE,28251953,"9,072.83"
Department of Health,NHS Sheffield CCG,31/07/2019,C&M-PMS Contract Value,PRC DELEGATED CO-COMMISSIONING,UPWELL STREET SURGERY,28017405,"37,734.18"
Department of Health,NHS Sheffield CCG,31/07/2019,C&M-PMS DES Learn Dsblty Hlth Chk,PRC DELEGATED CO-COMMISSIONING,UPWELL STREET SURGERY,28017405,"2,520.00"
Department of Health,NHS Sheffield CCG,31/07/2019,C&M-PMS Out of Hours Opt Outs,PRC DELEGATED CO-COMMISSIONING,UPWELL STREET SURGERY,28017405,0.9
Department of Health,NHS Sheffield CCG,31/07/2019,C&M-PMS PCN DES Participation,PRC DELEGATED CO-COMMISSIONING,UPWELL STREET SURGERY,28017405,"2,140.24"
Department of Health,NHS Sheffield CCG,31/07/2019,C&M-PMS PCO Other,PRC DELEGATED CO-COMMISSIONING,UPWELL STREET SURGERY,28017405,324.8
Department of Health,NHS Sheffield CCG,31/07/2019,C&M-PMS Prem Notional Rent,PRC DELEGATED CO-COMMISSIONING,UPWELL STREET SURGERY,28017405,"8,137.50"
Department of Health,NHS Sheffield CCG,31/07/2019,C&M-PMS Prem Rates,PRC DELEGATED CO-COMMISSIONING,UPWELL STREET SURGERY,28017405,"1,340.00"
Department of Health,NHS Sheffield CCG,31/07/2019,C&M-PMS QOF Aspiration,PRC DELEGATED CO-COMMISSIONING,UPWELL STREET SURGERY,28017405,"4,056.38"
Department of Health,NHS Sheffield CCG,31/07/2019,C&M-PMS Contract Value,PRC DELEGATED CO-COMMISSIONING,VALLEY MEDICAL CENTRE,28017407,"78,648.98"
Department of Health,NHS Sheffield CCG,31/07/2019,C&M-PMS DES Extended Hours Access,PRC DELEGATED CO-COMMISSIONING,VALLEY MEDICAL CENTRE,28017407,"2,533.07"
Department of Health,NHS Sheffield CCG,31/07/2019,C&M-PMS PCN DES Clinical Director,PRC DELEGATED CO-COMMISSIONING,VALLEY MEDICAL CENTRE,28017407,"1,184.71"
Department of Health,NHS Sheffield CCG,31/07/2019,C&M-PMS PCN DES PCN support,LOCAL ENHANCED SERVICES,VALLEY MEDICAL CENTRE,28017407,"10,372.00"
Department of Health,NHS Sheffield CCG,31/07/2019,C&M-PMS PCN DES Participation,PRC DELEGATED CO-COMMISSIONING,VALLEY MEDICAL CENTRE,28017407,"4,478.66"
Department of Health,NHS Sheffield CCG,31/07/2019,C&M-PMS Prem Rates,PRC DELEGATED CO-COMMISSIONING,VALLEY MEDICAL CENTRE,28017407,"1,664.00"
Department of Health,NHS Sheffield CCG,31/07/2019,C&M-PMS QOF Aspiration,PRC DELEGATED CO-COMMISSIONING,VALLEY MEDICAL CENTRE,28017407,"8,453.91"
Department of Health,NHS Sheffield CCG,31/07/2019,C&M-GMS Cost of Drugs -Prescribing,LOCAL ENHANCED SERVICES,WALKLEY HOUSE MEDICAL CENTRE,28251958,"1,125.04"
Department of Health,NHS Sheffield CCG,31/07/2019,C&M-GMS Global Sum,PRC DELEGATED CO-COMMISSIONING,WALKLEY HOUSE MEDICAL CENTRE,28251958,"85,009.73"
Department of Health,NHS Sheffield CCG,31/07/2019,C&M-GMS PCN DES Participation,PRC DELEGATED CO-COMMISSIONING,WALKLEY HOUSE MEDICAL CENTRE,28251958,"5,248.48"
Department of Health,NHS Sheffield CCG,31/07/2019,C&M-GMS Prem Notional Rent,PRC DELEGATED CO-COMMISSIONING,WALKLEY HOUSE MEDICAL CENTRE,28251958,"5,635.50"
Department of Health,NHS Sheffield CCG,31/07/2019,C&M-GMS Prem Rates,PRC DELEGATED CO-COMMISSIONING,WALKLEY HOUSE MEDICAL CENTRE,28251958,"1,845.00"
Department of Health,NHS Sheffield CCG,31/07/2019,C&M-GMS Prem Water Rates,PRC DELEGATED CO-COMMISSIONING,WALKLEY HOUSE MEDICAL CENTRE,28251958,151.22
Department of Health,NHS Sheffield CCG,31/07/2019,C&M-GMS Prof Fees Prescribing,PRC DELEGATED CO-COMMISSIONING,WALKLEY HOUSE MEDICAL CENTRE,28251958,218.86
Department of Health,NHS Sheffield CCG,31/07/2019,C&M-GMS QOF Aspiration,PRC DELEGATED CO-COMMISSIONING,WALKLEY HOUSE MEDICAL CENTRE,28251958,"8,602.90"
Department of Health,NHS Sheffield CCG,31/07/2019,C&M-GMS Cost of Drugs -Prescribing,LOCAL ENHANCED SERVICES,WHITE HOUSE SURGERY SHEFFIELD,28251956,"1,428.37"
Department of Health,NHS Sheffield CCG,31/07/2019,C&M-GMS Global Sum,PRC DELEGATED CO-COMMISSIONING,WHITE HOUSE SURGERY SHEFFIELD,28251956,"51,291.41"
Department of Health,NHS Sheffield CCG,31/07/2019,C&M-GMS MPIG Correction Factor,PRC DELEGATED CO-COMMISSIONING,WHITE HOUSE SURGERY SHEFFIELD,28251956,695.65
Department of Health,NHS Sheffield CCG,31/07/2019,C&M-GMS PCN DES Participation,PRC DELEGATED CO-COMMISSIONING,WHITE HOUSE SURGERY SHEFFIELD,28251956,"3,115.36"
Department of Health,NHS Sheffield CCG,31/07/2019,C&M-GMS Prem Notional Rent,PRC DELEGATED CO-COMMISSIONING,WHITE HOUSE SURGERY SHEFFIELD,28251956,"9,412.50"
Department of Health,NHS Sheffield CCG,31/07/2019,C&M-GMS Prem Rates,PRC DELEGATED CO-COMMISSIONING,WHITE HOUSE SURGERY SHEFFIELD,28251956,"2,443.00"
Department of Health,NHS Sheffield CCG,31/07/2019,C&M-GMS Prem Water Rates,PRC DELEGATED CO-COMMISSIONING,WHITE HOUSE SURGERY SHEFFIELD,28251956,279.13
Department of Health,NHS Sheffield CCG,31/07/2019,C&M-GMS Prof Fees Prescribing,PRC DELEGATED CO-COMMISSIONING,WHITE HOUSE SURGERY SHEFFIELD,28251956,363.17
Department of Health,NHS Sheffield CCG,31/07/2019,C&M-GMS QOF Aspiration,PRC DELEGATED CO-COMMISSIONING,WHITE HOUSE SURGERY SHEFFIELD,28251956,"6,233.52"
Department of Health,NHS Sheffield CCG,31/07/2019,Cont Care-Physical Disab (<65),CHC ADULT FULLY FUNDED,WILLOWBECK HEALTH CARE LTD,28123207,"112,001.30"
Department of Health,NHS Sheffield CCG,31/07/2019,C&M-PMS Contract Value,PRC DELEGATED CO-COMMISSIONING,WINCOBANK MEDICAL CENTRE,28017411,"62,282.64"
Department of Health,NHS Sheffield CCG,31/07/2019,C&M-PMS PCN DES Participation,PRC DELEGATED CO-COMMISSIONING,WINCOBANK MEDICAL CENTRE,28017411,"3,539.07"
Department of Health,NHS Sheffield CCG,31/07/2019,C&M-PMS PCO Locum Adop/Pat/Mat,PRC DELEGATED CO-COMMISSIONING,WINCOBANK MEDICAL CENTRE,28017411,"6,958.39"
Department of Health,NHS Sheffield CCG,31/07/2019,C&M-PMS Prem Healthcentre Rent,PRC DELEGATED CO-COMMISSIONING,WINCOBANK MEDICAL CENTRE,28017411,"45,121.79"
Department of Health,NHS Sheffield CCG,31/07/2019,C&M-PMS QOF Aspiration,PRC DELEGATED CO-COMMISSIONING,WINCOBANK MEDICAL CENTRE,28017411,"6,283.36"
Department of Health,NHS Sheffield CCG,31/07/2019,C&M-PMS Contract Value,PRC DELEGATED CO-COMMISSIONING,WOODHOUSE HEALTH CENTRE,28017409,"100,768.86"
Department of Health,NHS Sheffield CCG,31/07/2019,C&M-PMS PCN DES Participation,PRC DELEGATED CO-COMMISSIONING,WOODHOUSE HEALTH CENTRE,28017409,"5,719.73"
Department of Health,NHS Sheffield CCG,31/07/2019,C&M-PMS PCO Other,PRC DELEGATED CO-COMMISSIONING,WOODHOUSE HEALTH CENTRE,28017409,746.4
Department of Health,NHS Sheffield CCG,31/07/2019,C&M-PMS Prem Notional Rent,PRC DELEGATED CO-COMMISSIONING,WOODHOUSE HEALTH CENTRE,28017409,"6,338.58"
Department of Health,NHS Sheffield CCG,31/07/2019,C&M-PMS Prem Rates,PRC DELEGATED CO-COMMISSIONING,WOODHOUSE HEALTH CENTRE,28017409,"9,203.11"
Department of Health,NHS Sheffield CCG,31/07/2019,C&M-PMS QOF Aspiration,PRC DELEGATED CO-COMMISSIONING,WOODHOUSE HEALTH CENTRE,28017409,"13,912.30"
Department of Health,NHS Sheffield CCG,31/07/2019,C&M-PMS Contract Value,PRC DELEGATED CO-COMMISSIONING,WOODSEATS MEDICAL CENTRE,28021002,"76,354.92"
Department of Health,NHS Sheffield CCG,31/07/2019,C&M-PMS PCN DES Participation,PRC DELEGATED CO-COMMISSIONING,WOODSEATS MEDICAL CENTRE,28021002,"4,317.39"
Department of Health,NHS Sheffield CCG,31/07/2019,C&M-PMS PCO Locum Adop/Pat/Mat,PRC DELEGATED CO-COMMISSIONING,WOODSEATS MEDICAL CENTRE,28021002,"6,771.30"
Department of Health,NHS Sheffield CCG,31/07/2019,C&M-PMS PCO Other,PRC DELEGATED CO-COMMISSIONING,WOODSEATS MEDICAL CENTRE,28021002,622.7
Department of Health,NHS Sheffield CCG,31/07/2019,C&M-PMS Prem Notional Rent,PRC DELEGATED CO-COMMISSIONING,WOODSEATS MEDICAL CENTRE,28021002,"11,666.67"
Department of Health,NHS Sheffield CCG,31/07/2019,C&M-PMS Prem Rates,PRC DELEGATED CO-COMMISSIONING,WOODSEATS MEDICAL CENTRE,28021002,"3,100.00"
Department of Health,NHS Sheffield CCG,31/07/2019,C&M-PMS QOF Aspiration,PRC DELEGATED CO-COMMISSIONING,WOODSEATS MEDICAL CENTRE,28021002,"8,242.64"
Department of Health,NHS Sheffield CCG,31/07/2019,Hcare Srv Rec Fdtn Trust-Non Contract,NCAS/OATS,YORK TEACHING HOSPITAL NHS FOUNDATION TRUST,28318287,"27,120.49"
Department of Health,NHS Sheffield CCG,31/07/2019,Hcare Srv Rec NHS Trust-Contract Baseline,AMBULANCE SERVICES,YORKSHIRE AMBULANCE SERVICE NHS TRUST,27913772,"1,674,240.00"
Department of Health,NHS Sheffield CCG,31/07/2019,Hcare Srv Rec NHS Trust-Contract Baseline,AMBULANCE SERVICES,YORKSHIRE AMBULANCE SERVICE NHS TRUST,27913782,"125,843.75"
Department of Health,NHS Sheffield CCG,31/07/2019,Hcare Srv Rec NHS Trust-Contract Baseline,NHS 111,YORKSHIRE AMBULANCE SERVICE NHS TRUST,27913791,"133,605.27"
Department of Health,NHS Sheffield CCG,31/07/2019,Hcare Srv Rec NHS Trust-Contract Baseline,PATIENT TRANSPORT,YORKSHIRE AMBULANCE SERVICE NHS TRUST,27913796,"266,438.02"
Department of Health,NHS Sheffield CCG,31/07/2019,Hcare Srv Rec NHS Trust-CQUIN,PATIENT TRANSPORT,YORKSHIRE AMBULANCE SERVICE NHS TRUST,27999764,7.35
Department of Health,NHS Sheffield CCG,31/07/2019,Hcare Srv Rec NHS Trust-Contract Baseline,PATIENT TRANSPORT,YORKSHIRE AMBULANCE SERVICE NHS TRUST,27999764,"37,202.73"
